Workbook

Sheet Index

Sheet Physical Sales & Gx.
B4: CHILE | H4: CHILE
A6: 1 | B6: PHYSICAL SALES | C6: 3Q21 | D6: 3Q22 | E6: Var (%) | H6: Physical Sales | I6: 1Q14 | J6: 2Q14 | K6: 3Q14 | L6: 4Q14 | M6: 1Q15 | N6: 2Q15 | O6: 3Q15 | P6: 4Q15 | Q6: 1Q16 | R6: 2Q16 | S6: 3Q16 | T6: 4Q16 | U6: 1Q17 | V6: 2Q17 | W6: 3Q17 | X6: 4Q17 | Y6: 1Q18 | Z6: 2Q18 | AA6: 3Q18 | AB6: 4Q18 | AC6: 1Q19 | AD6: 2Q19 | AE6: 3Q19 | AF6: 4Q19 | AG6: 1Q20 | AH6: 2Q20 | AI6: 3Q20 | AJ6: 4Q20 | AK6: 1Q21 | AL6: 2Q21 | AM6: 3Q21 | AN6: 4Q21 | AO6: 1Q22 | AP6: 2Q22 | AQ6: 3Q22
A7: =+A6+1 -> 2 | B7: (GWh) | H7: (GWh)
A8: =+A7+1 -> 3
A9: 4 | B9: Total Physical Sales | C9: =+HLOOKUP($C$6,H6:AS29,A9,FALSE) -> 2756.218422 | D9: =+HLOOKUP($D$6,$H$6:$BL$29,A9,FALSE) -> 3224.766561 | E9: =D9/C9-1 -> 0.1699967372 | H9: Total Physical Sales | I9: =SUM(I11:I13) -> 2560.681024 | J9: =SUM(J11:J13) -> 3204.918976 | K9: 3160 | L9: 3256.637488 | M9: 3108.500095 | N9: 3307.390542 | O9: 3196.934248 | P9: 2884.597057 | Q9: 3159.409063 | R9: 3243.538059 | S9: 2781 | T9: 2772.533514 | U9: 3110.066332 | V9: 3272.661277 | W9: 3026.6 | X9: =SUM(X11:X13) -> 3018.3479 | Y9: 3407.868668 | Z9: =SUM(Z11:Z13) -> 3424.71413 | AA9: =SUM(AA11:AA13) -> 3024.331512 | AB9: 2985.76 | AC9: 3258.472476 | AD9: 3269.133525 | AE9: 2892.509873 | AF9: 2757.744234 | AG9: 2894.718426 | AH9: 3020.189566 | AI9: 3453.187344 | AJ9: 2677.069158 | AK9: 2521.983436 | AL9: 3075.870221 | AM9: 2756.218422 | AN9: 2569.04804 | AO9: =SUM(AO11:AO13) -> 3189.178554 | AP9: 3533.475643 | AQ9: 3224.766561
A10: 5
A11: 6 | B11: Regulated Customers | C11: =+HLOOKUP($C$6,$H$6:$AS$31,A11,FALSE) -> 845.334371 | D11: =+HLOOKUP($D$6,$H$6:$BK$29,A11,FALSE) -> 667.5782561 | E11: =+D11/C11-1 -> -0.2102790576 | H11: Regulated Customers | I11: 1109 | J11: 1621 | K11: 1816 | L11: 2109 | M11: 1733.647168 | N11: 1698.807051 | O11: 1635.675147 | P11: 1556.79198 | Q11: 1644.665244 | R11: 1622.183463 | S11: 1621 | T11: 1645.622853 | U11: 1654.636697 | V11: 1578.812248 | W11: 1579.9 | X11: 1489.7 | Y11: 1416.510417 | Z11: 1376.786752 | AA11: 1368.216 | AB11: 1255.872 | AC11: 1086.46147 | AD11: 1111.306316 | AE11: 1125.509873 | AF11: 1024.871184 | AG11: 788.306587 | AH11: 783.912453 | AI11: 827.4744728 | AJ11: 753.2387953 | AK11: 727.339743 | AL11: 789.444612 | AM11: 845.334371 | AN11: 737.1499725 | AO11: 551.2887807 | AP11: 609.8249144 | AQ11: 667.5782561
A12: 7 | B12: Unregulated Customers | C12: =+HLOOKUP($C$6,$H$6:$AS$31,A12,FALSE) -> 1657.247254 | D12: =+HLOOKUP($D$6,$H$6:$BK$29,A12,FALSE) -> 2321.277293 | E12: =+D12/C12-1 -> 0.4006825402 | H12: Unregulated Customers | I12: 1232.713507 | J12: 1159.386493 | K12: 1197 | L12: 1147.637488 | M12: 1047.852927 | N12: 1124.583491 | O12: 1105.542811 | P12: 1150.043912 | Q12: 1111.951052 | R12: 1108.645276 | S12: 1160 | T12: 1126.91066 | U12: 1099.855435 | V12: 1217.400452 | W12: 1230.9 | X12: 1183.54 | Y12: 1466.841998 | Z12: 1530.506378 | AA12: 1541.948283 | AB12: 1573.409 | AC12: 1492.418422 | AD12: 1592.18979 | AE12: 1736 | AF12: 1732.87305 | AG12: 1706.433667 | AH12: 1735.752988 | AI12: 1836.294376 | AJ12: 1888.620789 | AK12: 1707.346832 | AL12: 1664.834743 | AM12: 1657.247254 | AN12: 1652.103922 | AO12: 2400.348397 | AP12: 2386.233717 | AQ12: 2321.277293
A13: 8 | B13: Sales to the Spot Market | C13: =+HLOOKUP($C$6,$H$6:$AS$31,A13,FALSE) -> 253.6367975 | D13: =+HLOOKUP($D$6,$H$6:$BK$29,A13,FALSE) -> 235.9110117 | E13: -0.069886491 | H13: Sales to the Spot Market | I13: 218.9675164 | J13: 424.5324836 | K13: 147 | L13: 0 | M13: 327 | N13: 484 | O13: 455.716289 | P13: 177.7611645 | Q13: 402.7927666 | R13: 512.7093198 | S13: 0 | T13: 0 | U13: 355.5741995 | V13: 476.4485772 | W13: 215.8 | X13: 345.1079 | Y13: 524.5162526 | Z13: 517.421 | AA13: 114.1672284 | AB13: 156.479 | AC13: 679.5925845 | AD13: 565.6374188 | AE13: 31 | AF13: 0 | AG13: 399.978172 | AH13: 500.5241251 | AI13: 789.4184951 | AJ13: 35.20957391 | AK13: 87.29686098 | AL13: 621.5908665 | AM13: 253.6367975 | AN13: 179.7941458 | AO13: 237.5413767 | AP13: 537.4170107 | AQ13: 235.9110117
A14: 9 | C14: =+HLOOKUP($C$6,$H$6:$AS$31,A14,FALSE) -> 0 | D14: =+HLOOKUP($D$6,$H$6:$BK$29,A14,FALSE) -> 0
A15: 10 | B15: Capacity Sales | C15: =+HLOOKUP($C$6,$H$6:$AS$31,A15,FALSE) -> 1286.354412 | D15: =+HLOOKUP($D$6,$H$6:$BK$29,A15,FALSE) -> 1678.341717 | E15: =+D15/C15-1 -> 0.3047272986 | H15: Capacity Sales | I15: 1750 | J15: 1676.5379 | K15: 1717 | L15: 1658.537353 | M15: 1593 | N15: 1584.255333 | O15: 1585 | P15: 1509.01921 | Q15: 1516.257269 | R15: 1586.312932 | S15: 1611 | T15: 1605.096933 | U15: 1608.011451 | V15: 1580.915038 | W15: 1615 | X15: 1629.603262 | Y15: 1632.791491 | Z15: 1609.7 | AA15: 1656.602845 | AB15: 1663.067671 | AC15: 1664 | AD15: 1574.113806 | AE15: 1578.112625 | AF15: 1558 | AG15: 1389.742885 | AH15: 1439.51959 | AI15: 1486.069428 | AJ15: 1469.033486 | AK15: 1323.096359 | AL15: 1323.218519 | AM15: 1286.354412 | AN15: 1316.190088 | AO15: 1516.543182 | AP15: 1574.224302 | AQ15: 1678.341717
A16: 11
A17: 12 | B17: Total Generation | C17: =+HLOOKUP($C$6,$H$6:$AS$31,A17,FALSE) -> 2848.500257 | D17: =+HLOOKUP($D$6,$H$6:$BK$29,A17,FALSE) -> 3245.470495 | E17: =D17/C17-1 -> 0.139361138 | H17: Total Generation | I17: =+I19+I20+I24 -> 3267.9317 | J17: =+J19+J20+J24 -> 3498.9683 | K17: 3240 | L17: 2855.1034 | M17: 3195.3278 | N17: 3388.34238 | O17: 3270.1603 | P17: 2792.342894 | Q17: 3221.57434 | R17: 3312.99597 | S17: 2412 | T17: 2329.310532 | U17: =+U19+U20+U24 -> 3191.230239 | V17: 3386.481012 | W17: 3058.02089 | X17: 3079.878915 | Y17: 3455.346018 | Z17: =+Z19+Z20+Z24 -> 3514.839861 | AA17: 3026.03953 | AB17: 3009.206122 | AC17: 3334.482444 | AD17: 3334.365107 | AE17: =+AE19+AE20+AE24 -> 2589.509744 | AF17: 2668.8126 | AG17: 2984.436187 | AH17: 3113.979209 | AI17: 3546.170502 | AJ17: 2458.484482 | AK17: 2427.536689 | AL17: 3178.227914 | AM17: 2848.500257 | AN17: 2527.945036 | AO17: 3250.204563 | AP17: 3602.631795 | AQ17: 3245.470495
A18: 13
A19: 14 | B19: Hydraulic | C19: =+HLOOKUP($C$6,$H$6:$AS$31,A19,FALSE) -> 899.1045 | D19: =+HLOOKUP($D$6,$H$6:$BK$29,A19,FALSE) -> 1654.1555 | E19: =+D19/C19-1 -> 0.8397811378 | H19: Hydraulic | I19: 1108.7977 | J19: 1620.9023 | K19: 1816 | L19: 2109.0504 | M19: 1097.7068 | N19: 1357.50828 | O19: 1723.634 | P19: 2285.49955 | Q19: 1287.55664 | R19: 1338.0192 | S19: 988 | T19: 1153.0769 | U19: 1089.244235 | V19: 1248.1064 | W19: 1403.12089 | X19: 2156.30267 | Y19: 1409.20494 | Z19: 1433.3704 | AA19: 1348.5269 | AB19: 2120.86 | AC19: 1194.2386 | AD19: 1371.5127 | AE19: 1316.77403 | AF19: 1236.0531 | AG19: 1119.644 | AH19: 981.54163 | AI19: 1529.74043 | AJ19: 1965.36161 | AK19: 887.1842 | AL19: 1155.03392 | AM19: 899.1045 | AN19: 963.90317 | AO19: 804.20897 | AP19: 1001.4244 | AQ19: 1654.1555
A20: 15 | B20: Thermal | C20: 1861.038 | D20: 1420.486 | E20: =+D20/C20-1 -> -0.2367238068 | H20: Thermal | I20: =SUM(I21:I23) -> 2159.134 | J20: =SUM(J21:J23) -> 1878.066 | K20: 1424 | L20: 719.053 | M20: 2079.755 | N20: 2003.309 | O20: 1519.435 | P20: 467.988 | Q20: 1915.18 | R20: 1956.502 | S20: 1396 | T20: 1146.382 | U20: 2080.138 | V20: 2109.074 | W20: 1625.5 | X20: 887.74 | Y20: 2019.926 | Z20: =SUM(Z21:Z23) -> 2052.0572 | AA20: 1640.993 | AB20: 844.64 | AC20: 2113.66722 | AD20: 1902.70194 | AE20: 1164.291 | AF20: =SUM(AF21:AF23) -> 1327.2568 | AG20: 1838.4738 | AH20: 2108.043 | AI20: 1977.89856 | AJ20: 450.489 | AK20: 1512.657 | AL20: 1997.664 | AM20: =SUM(AM21:AM23) -> 1861.038 | AN20: =SUM(AN21:AN23) -> 1409.575 | AO20: =SUM(AO21:AO23) -> 2194.506 | AP20: 2370.776 | AQ20: 1420.486
A21: 16 | B21: Gas | C21: 1039.988 | D21: 680.935 | E21: =+D21/C21-1 -> -0.3452472529 | H21: Gas | I21: 1357.113 | J21: 929.087 | K21: 536 | L21: 188.972 | M21: 1146.766 | N21: 1201.863 | O21: 868.349 | P21: 204.482 | Q21: 1212.161 | R21: 1027.803 | S21: 559 | T21: 795.114 | U21: 1300.919 | V21: 1248.142 | W21: 846.3 | X21: 495.129 | Y21: 1268.531 | Z21: 1341.1382 | AA21: 914.079 | AB21: 335.71 | AC21: 1362.911 | AD21: 1199.108 | AE21: 965.792 | AF21: 979.5035 | AG21: 1190.3718 | AH21: 1425.263 | AI21: 1429.42956 | AJ21: 62.475 | AK21: 722.054 | AL21: 1206.932 | AM21: 1039.988 | AN21: 997.404 | AO21: 1526.465 | AP21: 1564.117 | AQ21: 680.935
A22: 17 | B22: Diesel | C22: 101.783 | D22: 22.574 | E22: =+D22/C22-1 -> -0.7782144366 | H22: Diesel | I22: 96.025 | J22: 231.075 | K22: 216 | L22: 2.749 | M22: 141.345 | N22: 101.998 | O22: 0.338 | P22: 0.509 | Q22: 3.506 | R22: 204.721 | S22: 94 | T22: 12.699 | U22: 43.264 | V22: 122.758 | W22: 32.3 | X22: 7.661 | Y22: 14.944 | Z22: 28.54 | AA22: 21.773 | AB22: 13.21 | AC22: 51.59021968 | AD22: 12.88894 | AE22: 0.053 | AF22: 2.0883 | AG22: 31.466 | AH22: 31.5 | AI22: 3.447 | AJ22: 5.99 | AK22: 118.843 | AL22: 45.29 | AM22: 101.783 | AN22: 28.377 | AO22: 29.93 | AP22: 153.408 | AQ22: 22.574
A23: 18 | B23: Coal | C23: 719.267 | D23: 716.977 | E23: -0.003183796838 | H23: Coal | I23: 705.996 | J23: 717.904 | K23: 672 | L23: 527.332 | M23: 791.644 | N23: 699.448 | O23: 650.748 | P23: 262.997 | Q23: 699.513 | R23: 723.978 | S23: 743 | T23: 338.569 | U23: 735.955 | V23: 738.174 | W23: 746.9 | X23: 384.95 | Y23: 736.451 | Z23: 682.379 | AA23: 705.141 | AB23: 495.72 | AC23: 699.166 | AD23: 690.705 | AE23: 198.446 | AF23: 345.665 | AG23: 616.636 | AH23: 651.28 | AI23: 545.022 | AJ23: 382.024 | AK23: 671.76 | AL23: 745.442 | AM23: 719.267 | AN23: 383.794 | AO23: 638.111 | AP23: 653.251 | AQ23: 716.977
A24: 19 | B24: REVS (*) | C24: 88.35775745 | D24: 170.8289949 | E24: 0.9333785713 | H24: REVS(*) | I24: =SUM(I25:I26) -> 0 | J24: =SUM(J25:J26) -> 0 | K24: 0 | L24: 27 | M24: 17.866 | N24: 27.5251 | O24: 27.0913 | P24: 38.85534428 | Q24: 18.8377 | R24: 18.47477 | S24: 28 | T24: 29.85163211 | U24: 21.84800375 | V24: 29.30061166 | W24: 29.4 | X24: 35.83624455 | Y24: 26.21507797 | Z24: =SUM(Z25:Z26) -> 29.41226088 | AA24: =SUM(AA25:AA26) -> 36.51963029 | AB24: 43.70612185 | AC24: 26.57662475 | AD24: 60.1504671 | AE24: 108.4447137 | AF24: 105.5026995 | AG24: 26.31838679 | AH24: 24.39457903 | AI24: 38.53151214 | AJ24: 42.63387226 | AK24: =SUM(AK25:AK26) -> 27.69548905 | AL24: =SUM(AL25:AL26) -> 25.52999436 | AM24: =SUM(AM25:AM26) -> 88.35775745 | AN24: =+SUM(AN25:AN26) -> 154.4668663 | AO24: =SUM(AO25:AO26) -> 251.4895934 | AP24: =SUM(AP25:AP26) -> 230.4313945 | AQ24: 170.8289949
A25: 20 | B25: Wind Farm(*) | C25: 84.7232 | D25: 69.128447 | E25: -0.1840670914 | H25: Wind Farm | I25: 0 | J25: 0 | K25: 0 | L25: 27 | M25: 17.866 | N25: 27.5251 | O25: 27.0913 | P25: 38.85534428 | Q25: 18.8377 | R25: 18.47477 | S25: 28 | T25: 29.85163211 | U25: 21.84800375 | V25: 29.30061166 | W25: 29.4 | X25: 35.83624455 | Y25: 25.60380138 | Z25: 26.33255463 | AA25: 33.03348573 | AB25: 36.79612185 | AC25: 20.1650468 | AD25: 57.08545501 | AE25: 104.6862825 | AF25: 98.46884997 | AG25: 19.68953978 | AH25: 21.30954262 | AI25: 34.4334207 | AJ25: 35.23585958 | AK25: 21.41957 | AL25: 22.435517 | AM25: 84.7232 | AN25: 29.48584 | AO25: 33.29886 | AP25: 121.25425 | AQ25: 69.128447
A26: 21 | B26: Solar | C26: 3.634557453 | D26: 101.7005479 | E26: - | H26: Solar | I26: 0 | J26: 0 | K26: 0 | L26: 0 | M26: 0 | N26: 0 | O26: 0 | P26: 0 | Q26: 0 | R26: 0 | S26: 0 | T26: 0 | U26: 0 | V26: 0 | W26: 0 | X26: 0 | Y26: 0.6112765913 | Z26: 3.07970625 | AA26: 3.486144558 | AB26: 6.91 | AC26: 6.41157795 | AD26: 3.065012091 | AE26: 3.758431225 | AF26: 7.033849538 | AG26: 6.628847009 | AH26: 3.085036401 | AI26: 4.098091439 | AJ26: 7.398012687 | AK26: 6.275919047 | AL26: 3.094477364 | AM26: 3.634557453 | AN26: 124.9810263 | AO26: 218.1907334 | AP26: 109.1771445 | AQ26: 101.7005479
A27: 22 | B27: Spot Market Purchases | C27: 0 | D27: 0 | H27: Spot Market Purchases | I27: 0 | J27: 0 | K27: 23.8 | L27: 119.8 | M27: 0 | N27: 0 | O27: 0 | P27: 124 | Q27: 0 | R27: 0 | S27: 433 | T27: 490 | U27: 0 | V27: 0 | W27: 52.11480469 | X27: 0 | Y27: 0 | Z27: 0 | AA27: 65.02880489 | AB27: 29.2960614 | AC27: 0 | AD27: 0 | AE27: 369 | AF27: 102.919593 | AG27: 0 | AH27: 0 | AI27: 0 | AJ27: 269.7378305 | AK27: 180.3809651 | AL27: 0 | AM27: 0 | AN27: 105.3 | AO27: 0 | AP27: 0 | AQ27: 0
A28: 23 | C28: 0
A29: 24 | B29: Sales - Purchases to the Spot Market | C29: 253.6367975 | D29: 235.9110117 | E29: -0.069886491 | H29: Sales - Purchases to the Spot Market | I29: =I13-I27 -> 218.9675164 | J29: =J13-J27 -> 424.5324836 | K29: 123.2 | L29: -119.8 | M29: 327 | N29: 484 | O29: 455.716289 | P29: 53.76116455 | Q29: 402.7927666 | R29: 512.7093198 | S29: -433 | T29: -490 | U29: =U13-U27 -> 355.5741995 | V29: 476.4485772 | W29: 163.6851953 | X29: =X13-X27 -> 345.1079 | Y29: 524.5162526 | Z29: =Z13-Z27 -> 517.421 | AA29: =AA13-AA27 -> 49.13842348 | AB29: =AB13-AB27 -> 127.1829386 | AC29: 679.5925845 | AD29: 565.6374188 | AE29: -338 | AF29: =AF13-AF27 -> -102.919593 | AG29: 399.978172 | AH29: 500.5241251 | AI29: 789.4184951 | AJ29: -234.5282566 | AK29: -93.08410409 | AL29: 621.5908665 | AM29: =AM13-AM27 -> 253.6367975 | AN29: =AN13-AN27 -> 74.49414581 | AO29: =AO13-AO27 -> 237.5413767 | AP29: 537.4170107 | AQ29: 235.9110117
B34: PERÚ | H34: PERÚ
A36: 1 | B36: PHYSICAL SALES | C36: 3Q21 | D36: 3Q22 | E36: Var (%) | H36: Physical Sales | I36: 1Q14 | J36: 2Q14 | K36: 3Q14 | L36: 4Q14 | M36: 1Q15 | N36: 2Q15 | O36: 3Q15 | P36: 4Q15 | Q36: 1Q16 | R36: 2Q16 | S36: 3Q16 | T36: 4Q16 | U36: 1Q17 | V36: 2Q17 | W36: 3Q17 | X36: 4Q17 | Y36: 1Q18 | Z36: 2Q18 | AA36: 3Q18 | AB36: 4Q18 | AC36: 1Q19 | AD36: 2Q19 | AE36: 3Q19 | AF36: 4Q19 | AG36: 1Q20 | AH36: 2Q20 | AI36: 3Q20 | AJ36: 4Q20 | AK36: 1Q21 | AL36: 2Q21 | AM36: 3Q21 | AN36: 4Q21 | AO36: 1Q22 | AP36: 2Q22 | AQ36: 3Q22
A37: 2 | B37: (GWh) | H37: (GWh)
A38: 3
A39: 4 | B39: Total Physical Sales | C39: =+HLOOKUP($C$36,$H$36:$AS$51,A39,FALSE) -> 1183.606557 | D39: =+HLOOKUP($D$36,H36:AS51,A39,FALSE) -> 1150 | E39: =D39/C39-1 -> -0.02839335174 | H39: Total Physical Sales | Q39: =Q41+Q42 -> 896.1547739 | R39: =R41+R42 -> 966.3325816 | S39: 931.4719307 | T39: 1184.764977 | U39: 788.826348 | V39: 1049 | W39: 1163.311493 | X39: =X41+X42 -> 1110.281331 | Y39: 809.9449688 | Z39: =Z41+Z42 -> 978.7634578 | AA39: 1096.521136 | AB39: 1159.74793 | AC39: 941.9340163 | AD39: 983.0193926 | AE39: 1160.604597 | AF39: =AF41+AF42 -> 825.0815781 | AG39: 515.4441198 | AH39: 626.6529689 | AI39: 1018.899188 | AJ39: 965.9801146 | AK39: 560.9641316 | AL39: 877.862126 | AM39: 1183.606557 | AN39: 906.6452353 | AO39: 1001.941521 | AP39: 952.3768131 | AQ39: 1150
A40: 5
A41: 6 | B41: Customers Under Contract | C41: =+HLOOKUP($C$36,$H$36:$AS$51,A41,FALSE) -> 506.8787799 | D41: =+HLOOKUP($D$36,$H$36:$BJ$51,A41,FALSE) -> 482 | E41: =+D41/C41-1 -> -0.04908230704 | H41: Customers Under Contract | Q41: 896.1547739 | R41: 895 | S41: 660.8546596 | T41: 701.7417582 | U41: 670.1455793 | V41: 713 | W41: 808.7313864 | X41: 820.1176585 | Y41: 754.1190005 | Z41: 805.1302362 | AA41: 725.4364171 | AB41: 716.7830726 | AC41: 752.7402569 | AD41: 706.1968736 | AE41: 730.5034693 | AF41: 732.8967975 | AG41: 515.4441198 | AH41: 412.6138803 | AI41: 466.6808672 | AJ41: 489.7901656 | AK41: 509.4271358 | AL41: 503.8715783 | AM41: 506.8787799 | AN41: 525.5675068 | AO41: 617.0298679 | AP41: 589.5416491 | AQ41: 482
A42: 7 | B42: Sales to the Spot Market | C42: =+HLOOKUP($C$36,$H$36:$AS$51,A42,FALSE) -> 676.7277774 | D42: =+HLOOKUP($D$36,$H$36:$BJ$51,A42,FALSE) -> 553 | E42: =+D42/C42-1 -> -0.1828324203 | H42: Sales to the Spot Market | Q42: 0 | R42: 71.33258163 | S42: 270.6172712 | T42: 483.0232192 | U42: 118.6807686 | V42: 336 | W42: 354.5801064 | X42: 290.163672 | Y42: 55.82596823 | Z42: 173.6332216 | AA42: 371.0847186 | AB42: 442.9648577 | AC42: 189.1937594 | AD42: 276.822519 | AE42: 430.1011278 | AF42: 92.18478055 | AG42: 0 | AH42: 214.0390886 | AI42: 552.218321 | AJ42: 476.189949 | AK42: 51.53699576 | AL42: 373.9905477 | AM42: 676.7277774 | AN42: 381.0777285 | AO42: 384.9116534 | AP42: 362.835164 | AQ42: 553
A43: 8 | C43: =+HLOOKUP($C$36,$H$36:$AS$51,A43,FALSE) -> 0
A44: 9 | B44: Capacity Sales | C44: =+HLOOKUP($C$36,$H$36:$AS$51,A44,FALSE) -> 564.6186281 | D44: =+HLOOKUP($D$36,$H$36:$BJ$51,A44,FALSE) -> 570 | E44: =+D44/C44-1 -> 0.009530985455 | H44: Capacity Sales | Q44: 561 | R44: 561.85 | S44: 563 | T44: 563.7984367 | U44: 562.0491675 | V44: 555 | W44: 556.3252785 | X44: 553.7985714 | Y44: 551.4493323 | Z44: 550.0562108 | AA44: 552.7518728 | AB44: 553.5089729 | AC44: 554.8341732 | AD44: 556.6282823 | AE44: 430.1011278 | AF44: 558.471595 | AG44: 557.948811 | AH44: 559.6671978 | AI44: 558.4483097 | AJ44: 558.4479528 | AK44: 560.4393152 | AL44: 563.2322291 | AM44: 564.6186281 | AN44: 566.0569454 | AO44: 567.7723281 | AP44: 567.7173658 | AQ44: 570
A45: 10
A46: 11 | B46: Total Generation | C46: =+HLOOKUP($C$36,$H$36:$AS$51,A46,FALSE) -> 1210.059313 | D46: =+HLOOKUP($D$36,$H$36:$BJ$51,A46,FALSE) -> 1176 | E46: =D46/C46-1 -> -0.02814681257 | H46: Total Generation | Q46: 663 | R46: 800 | S46: 906.6029602 | T46: 1211 | U46: 715.3286679 | V46: 1074 | W46: 1188.012463 | X46: =X48 -> 1135.434012 | Y46: 604.5149574 | Z46: 1002.376685 | AA46: 1120.597926 | AB46: 1186.036025 | AC46: 931.6204473 | AD46: 937.2624763 | AE46: 1185.39816 | AF46: 713.1797419 | AG46: 343.0982143 | AH46: 512.9721762 | AI46: 1041.832574 | AJ46: 989.0327181 | AK46: 520.6674725 | AL46: 778.1685207 | AM46: 1210.059313 | AN46: 930.0754011 | AO46: 1027.293605 | AP46: 929.4566714 | AQ46: 1176
A47: 12
A48: 13 | B48: Thermoelectric - Gas | C48: =+HLOOKUP($C$36,$H$36:$AS$51,A48,FALSE) -> 1210.059313 | D48: =+HLOOKUP($D$36,$H$36:$BJ$51,A48,FALSE) -> 1176 | E48: =+D48/C48-1 -> -0.02814681257 | H48: Thermoelectric - Gas | Q48: 663 | R48: 800 | S48: 906.6029602 | T48: 1211 | U48: 715.3286679 | V48: 1074 | W48: 1188.012463 | X48: 1135.434012 | Y48: 604.5149574 | Z48: 1002.376685 | AA48: 1120.597926 | AB48: 1186.036025 | AC48: 931.6204473 | AD48: 937.2624763 | AE48: 1185.39816 | AF48: 713.1797419 | AG48: 343.0982143 | AH48: 512.9721762 | AI48: 1041.832574 | AJ48: 989.0327181 | AK48: 520.6674725 | AL48: 778.1685207 | AM48: 1210.059313 | AN48: 930.0754011 | AO48: 1027.293605 | AP48: 929.4566714 | AQ48: 1176
A49: 14 | B49: Spot Market Purchases | C49: =+HLOOKUP($C$36,$H$36:$AS$51,A49,FALSE) -> 0 | D49: =+HLOOKUP($D$36,$H$36:$BJ$51,A49,FALSE) -> 0 | E49: - | H49: Spot Market Purchases | Q49: 117.2657986 | R49: 146.8918118 | S49: 46.40639902 | T49: 0 | U49: 92.80036355 | V49: 0 | W49: 0 | X49: 0 | Y49: 209.5338502 | Z49: 0 | AA49: 0 | AB49: 0 | AC49: 33.27100363 | AD49: 67.83488997 | AE49: 0 | AF49: 130.7058805 | AG49: 185.6060478 | AH49: 127.7789541 | AI49: 0 | AJ49: 0 | AK49: 57.64509566 | AL49: 120.0427204 | AM49: 0 | AN49: 0 | AO49: 0 | AP49: 44.4945769 | AQ49: 0
A50: 15 | C50: =+HLOOKUP($C$36,$H$36:$AS$51,A50,FALSE) -> 0 | D50: =+HLOOKUP($D$36,$H$36:$BJ$51,A50,FALSE) -> 0 | AB50: 0
A51: 16 | B51: Sales - Purchases to the Spot Market | C51: =+HLOOKUP($C$36,$H$36:$AS$51,A51,FALSE) -> 676.7277774 | D51: =+HLOOKUP($D$36,$H$36:$BJ$51,A51,FALSE) -> 553 | E51: =+D51/C51-1 -> -0.1828324203 | H51: Sales - Purchases to the Spot Market | Q51: -117.2657986 | R51: -75.55923013 | S51: 224.2108721 | T51: 483.0232192 | U51: 25.88040508 | V51: 336 | W51: 354.5801064 | X51: 355.5801064 | Y51: -153.707882 | Z51: =Z42-Z49 -> 173.6332216 | AA51: 371.0847186 | AB51: 442.9648577 | AC51: 155.9227558 | AD51: 208.987629 | AE51: 430.1011278 | AF51: -38.52109992 | AG51: -185.6060478 | AH51: 86.26013448 | AI51: 552.218321 | AJ51: 476.189949 | AK51: -6.1080999 | AL51: 253.9478273 | AM51: 676.7277774 | AN51: 381.0777285 | AO51: 384.9116534 | AP51: 318.3405871 | AQ51: =AQ42-AQ49 -> 553
B53: (*) Corresponds to the energy purchased from the Punta Palmeras wind farm and from Santa Isabel by Total Sun Power

Sheet Income Statement
B4: CONSOLIDATED | H4: CONSOLIDATED
A6: 1 | B6: COMPREHENSIVE INCOME STATEMENT | C6: 3Q21 | D6: 3Q22 | E6: Var (%) | H6: COMPREHENSIVE INCOME STATEMENT | I6: 1Q17 | J6: 2Q17 | K6: 3Q17 | L6: 4Q17 | M6: 1Q18 | N6: 2Q18 | O6: 3Q18 | P6: 4Q18 | Q6: 1Q19 | R6: 2Q19 | S6: 3Q19 | T6: 4Q19 | U6: 1Q20 | V6: 2Q20 | W6: 3Q20 | X6: 4Q20 | Y6: 1Q21 | Z6: 2Q21 | AA6: 3Q21 | AB6: 4Q21 | AC6: 1Q22 | AD6: 2Q22 | AE6: 3Q22
A7: 2 | B7: US$ million | H7: US$ million
A8: 3
A9: 4 | B9: Operating Income | C9: =+HLOOKUP($C$6,$H$6:$AT$46,A9,FALSE) -> 357.0776123 | D9: =+HLOOKUP($D$6,$H$6:$AT$46,A9,FALSE) -> 488.1792009 | E9: =D9/C9-1 -> 0.3671515214 | H9: Operating Income | I9: =SUM(I10:I11) -> 382.0435246 | J9: 393.5254385 | K9: 384.0144253 | L9: 388.8286464 | M9: 406.6181979 | N9: 400.7999563 | O9: 360.1510396 | P9: =+P10+P11 -> 385.6962987 | Q9: 383.0566632 | R9: 390.4693842 | S9: 361.7120458 | T9: 352.069732 | U9: 342.6102919 | V9: 326.5143395 | W9: 344.0023996 | X9: 335.740762 | Y9: 335.585271 | Z9: 372.1688178 | AA9: 357.0776123 | AB9: =SUM(AB10:AB11) -> 374.912429 | AC9: =SUM(AC10:AC11) -> 416.8310558 | AD9: =SUM(AD10:AD11) -> 513.9513794 | AE9: 488.1792009
A10: 5 | B10: Sales | C10: =+HLOOKUP($C$6,$H$6:$AT$46,A10,FALSE) -> 338.0780854 | D10: =+HLOOKUP($D$6,$H$6:$AT$46,A10,FALSE) -> 476.9195928 | E10: =+D10/C10-1 -> 0.4106788146 | H10: Sales | I10: 375.7076079 | J10: 387.0725421 | K10: 377.5638788 | L10: 383.9596688 | M10: 399.3671449 | N10: 394.7149132 | O10: =360.15103961-O11 -> 353.2098226 | P10: 378.4162867 | Q10: 375.0383525 | R10: 381.0600319 | S10: 352.2514065 | T10: 340.8447744 | U10: 336.2674227 | V10: 318.1688838 | W10: 339.6841493 | X10: 329.1052519 | Y10: 327.8862788 | Z10: 362.2622275 | AA10: 338.0780854 | AB10: 368.4167129 | AC10: 404.1378284 | AD10: 503.7448756 | AE10: 476.9195928
A11: 6 | B11: Other Operating Income | C11: 18.99952686 | D11: 11.25960813 | E11: -0.407374288 | H11: Other Operating Income | I11: 6.33591667 | J11: 6.45289646 | K11: 6.4505465 | L11: 4.86897755 | M11: 7.25105299 | N11: 6.08504313 | O11: 6.94121697 | P11: 7.28001204 | Q11: 8.01831073 | R11: 9.40935227 | S11: 9.46063929 | T11: 11.22495761 | U11: 6.34286927 | V11: 8.34545564 | W11: 4.31825038 | X11: 6.635510039 | Y11: 7.698992169 | Z11: 9.906590215 | AA11: 18.99952686 | AB11: 6.495716122 | AC11: 12.69322748 | AD11: 10.20650379 | AE11: 11.25960813
A12: 7
A13: 8 | B13: Raw Material and Consumables Used | C13: -253.2641518 | D13: -248.6259608 | E13: =D13/C13-1 -> -0.01831364979 | H13: Raw Material and Consumables Used | I13: =SUM(I14:I19) -> -201.6183473 | J13: -209.7236094 | K13: -182.8379865 | L13: -161.4998081 | M13: -214.612055 | N13: -218.9448071 | O13: -176.4866995 | P13: -145.5166641 | Q13: -197.7641406 | R13: -191.3736725 | S13: -160.2036306 | T13: -142.6427465 | U13: -144.0232772 | V13: -144.9797694 | W13: -141.802591 | X13: -123.5962296 | Y13: -163.2475323 | Z13: -189.5021886 | AA13: -253.2641518 | AB13: -175.9588367 | AC13: -237.66753 | AD13: -326.4638716 | AE13: -248.6259608
A14: 9 | B14: Transmission Tolls | C14: -23.92516611 | D14: -31.63107166 | E14: =+D14/C14-1 -> 0.3220836802 | H14: Transmission Tolls | I14: -49.66312344 | J14: -45.02885879 | K14: -48.47184137 | L14: -50.92284998 | M14: -49.9711965 | N14: -42.72805692 | O14: -27.18915345 | P14: -32.17954707 | Q14: -32.9777754 | R14: -34.29679217 | S14: -31.99059846 | T14: -20.88005158 | U14: -21.55022939 | V14: -26.60999613 | W14: -26.50304141 | X14: -38.09702692 | Y14: -31.25610667 | Z14: -29.58127099 | AA14: -23.92516611 | AB14: -30.1917435 | AC14: -36.72765609 | AD14: -36.78215912 | AE14: -31.63107166
A15: 10 | B15: Energy and Capacity Purchases | C15: -18.52931855 | D15: -37.32488965 | E15: =+D15/C15-1 -> 1.014369258 | H15: Energy and Capacity Purchases | I15: -10.30923659 | J15: -8.1412438 | K15: -12.31748 | L15: -15.23579023 | M15: -14.03154329 | N15: -8.26340738 | O15: -12.96105287 | P15: -10.25707385 | Q15: -2.75986665 | R15: -13.18502617 | S15: -30.11858333 | T15: -18.77742197 | U15: -15.50763813 | V15: -7.04974417 | W15: -8.86610442 | X15: -22.67480489 | Y15: -15.90505726 | Z15: -13.35912676 | AA15: -18.52931855 | AB15: -22.85488137 | AC15: -28.38839686 | AD15: -40.37369869 | AE15: -37.32488965
A16: 11 | B16: Gas Consumption | C16: -149.8737999 | D16: -115.3281276 | E16: -0.2304984079 | H16: Gas Consumption | I16: -94.48404091 | J16: -97.68304459 | K16: -69.25754559 | L16: -46.94418698 | M16: -100.7995592 | N16: -115.363638 | O16: -87.82083008 | P16: -51.49424782 | Q16: -107.3478007 | R16: -95.37933399 | S16: -70.41770577 | T16: -64.13887255 | U16: -68.50728894 | V16: -69.67391141 | W16: -75.50659227 | X16: -31.72562505 | Y16: -66.27092621 | Z16: -94.11752605 | AA16: -149.8737999 | AB16: -84.11777026 | AC16: -119.3658071 | AD16: -150.1760726 | AE16: -115.3281276
A17: 12 | B17: Diesel Consumption | C17: -18.83520717 | D17: -7.21312228 | E17: -0.6170404597 | H17: Diesel Consumption | I17: -6.96988291 | J17: -16.59391297 | K17: -4.99039669 | L17: -2.59113864 | M17: -3.00858503 | N17: -4.84106933 | O17: -4.99735498 | P17: -3.58230685 | Q17: -9.14473538 | R17: -2.14643662 | S17: -0.41594636 | T17: -0.9745767808 | U17: -4.29868093 | V17: -2.94319108 | W17: -0.4181534 | X17: -1.86275127 | Y17: -16.70689078 | Z17: -7.62363504 | AA17: -18.83520717 | AB17: -6.18025114 | AC17: -7.05932875 | AD17: -50.7932243 | AE17: -7.21312228
A18: 13 | B18: Coal Consumption | C18: -26.62658152 | D18: -41.5672523 | E18: 0.5611186238 | H18: Coal Consumption | I18: -18.26781412 | J18: -19.58798553 | K18: -21.77500257 | L18: -14.18232266 | M18: -22.11838772 | N18: -22.37694036 | O18: -23.06863908 | P18: -19.23463008 | Q18: -25.9519975 | R18: -25.32959303 | S18: -7.9583245 | T18: -14.40621734 | U18: -20.79586649 | V18: -21.1839025 | W18: -17.54565283 | X18: -10.82531167 | Y18: -21.10655095 | Z18: -25.1861366 | AA18: -26.62658152 | AB18: -16.74097134 | AC18: -31.01701394 | AD18: -31.9934318 | AE18: -41.5672523
A19: 14 | B19: Other Operating Expenses | C19: -15.47407858 | D19: -15.56149732 | E19: 0.005649366329 | H19: Other Operating Expenses | I19: -21.92424937 | J19: -22.68856373 | K19: -26.02572027 | L19: -31.62351957 | M19: -24.68278321 | N19: -25.3716951 | O19: -20.44966906 | P19: -28.76885844 | Q19: -19.58196495 | R19: -21.03649055 | S19: -19.30247222 | T19: -23.46560624 | U19: -13.36357333 | V19: -17.51902408 | W19: -12.96304668 | X19: -18.41070977 | Y19: -12.00200043 | Z19: -19.63449319 | AA19: -15.47407858 | AB19: -15.87321908 | AC19: -15.10932731 | AD19: -16.34528508 | AE19: -15.56149732
A20: 15
A21: 16 | B21: Gross Profit | C21: 103.8134604 | D21: 239.5532401 | E21: =D21/C21-1 -> 1.307535449 | H21: Gross Profit | I21: =I9+I13 -> 180.4251773 | J21: 183.8018291 | K21: 201.1764388 | L21: 227.3288383 | M21: 192.0061429 | N21: 181.8551492 | O21: 183.6643401 | P21: 240.1796346 | Q21: 185.2925226 | R21: 199.0957117 | S21: 201.5084152 | T21: 209.4269855 | U21: 198.5870147 | V21: 181.5345701 | W21: 202.1998086 | X21: 212.1445324 | Y21: 172.3377387 | Z21: 182.6666291 | AA21: 103.8134604 | AB21: 198.9535923 | AC21: =AC9+AC13 -> 179.1635258 | AD21: =AD9+AD13 -> 187.4875077 | AE21: 239.5532401
A22: 17 | D22: 0
A23: 18 | B23: Personnel Expenses | C23: -19.29925543 | D23: -20.73501326 | E23: =+D23/C23-1 -> 0.07439446745 | H23: Personnel Expenses | I23: -17.04451195 | J23: -17.66024611 | K23: -19.13792746 | L23: -22.9423459 | M23: -20.83305013 | N23: -19.99287172 | O23: -19.41948554 | P23: -19.52008206 | Q23: -18.14563445 | R23: -18.69958454 | S23: -18.13186246 | T23: -19.37441783 | U23: -15.10311077 | V23: -15.96317607 | W23: -16.54621755 | X23: -17.74441321 | Y23: -21.26849433 | Z23: -21.54431994 | AA23: -19.29925543 | AB23: -17.55948738 | AC23: -20.24167939 | AD23: -21.18349092 | AE23: -20.73501326
A24: 19 | B24: Other Expenses, by Nature | C24: -12.67912393 | D24: -13.67312302 | E24: =+D24/C24-1 -> 0.0783965119 | H24: Other Expenses, by Nature | I24: -8.57922666 | J24: -7.66475559 | K24: -8.01412522 | L24: 0.44080516 | M24: -7.59510976 | N24: -7.86151742 | O24: -7.90491002 | P24: -10.4942574 | Q24: -5.57047109 | R24: -6.62765181 | S24: -4.66054455 | T24: -7.11578272 | U24: -11.13666763 | V24: -10.3069637 | W24: -10.66756838 | X24: -14.45832041 | Y24: -13.71493304 | Z24: -14.38175989 | AA24: -12.67912393 | AB24: -17.12693779 | AC24: -13.33045738 | AD24: -13.44112782 | AE24: -13.67312302
A25: 20 | B25: Depreciation and Amortization Expenses | C25: -52.95113415 | D25: -54.01826003 | E25: =+D25/C25-1 -> 0.02015303161 | H25: Depreciation and Amortization Expenses | I25: -59.57297427 | J25: -60.37140077 | K25: -59.5311989 | L25: -44.01202159 | M25: -58.61902585 | N25: -58.82303159 | O25: -59.4934909 | P25: -60.0190398 | Q25: -60.01854023 | R25: -65.97343181 | S25: -63.85353664 | T25: -60.67687337 | U25: -60.57309273 | V25: -60.98348462 | W25: -62.10269554 | X25: -62.95540184 | Y25: -55.42609331 | Z25: -52.13421694 | AA25: -52.95113415 | AB25: -52.65123006 | AC25: -52.82131055 | AD25: -55.28199849 | AE25: -54.01826003
A26: 21
A27: 22 | B27: Operating Income (Loss) | C27: 18.88394694 | D27: 151.1268437 | E27: =D27/C27-1 -> 7.002926732 | H27: Operating Income (Loss) | I27: =I25+I24+I23+I21 -> 95.22846437 | J27: 98.10542665 | K27: 114.4931872 | L27: 160.815276 | M27: 104.9589572 | N27: 95.17772844 | O27: 96.84645363 | P27: 150.1462553 | Q27: 101.5578769 | R27: 107.7950435 | S27: 114.8624716 | T27: 122.2599116 | U27: 111.7741436 | V27: 94.2809457 | W27: 112.8833272 | X27: 116.986397 | Y27: =Y25+Y24+Y23+Y21 -> 81.92821801 | Z27: 94.60633235 | AA27: 18.88394694 | AB27: 111.6159371 | AC27: =AC25+AC24+AC23+AC21 -> 92.77007849 | AD27: =AD25+AD24+AD23+AD21 -> 97.5808905 | AE27: 151.1268437
A28: 23 | C28: 0 | D28: 0
A29: 24 | B29: EBITDA | C29: =+HLOOKUP($C$6,$H$6:$AT$46,A29,FALSE) -> 71.83508109 | D29: =+HLOOKUP($D$6,$H$6:$AT$46,A29,FALSE) -> 205.1451038 | E29: =D29/C29-1 -> 1.855778829 | H29: EBITDA | I29: =+I21+I23+I24 -> 154.8014386 | J29: =+J21+J23+J24 -> 158.4768274 | K29: =+K21+K23+K24 -> 174.0243861 | L29: =+L21+L23+L24 -> 204.8272976 | M29: 163.5779831 | N29: 154.00076 | O29: 156.3399445 | P29: 210.1652951 | Q29: 161.5764171 | R29: 173.7684753 | S29: 178.7160082 | T29: 182.936785 | U29: 172.3472363 | V29: 155.2644303 | W29: 174.9860227 | X29: 179.9417988 | Y29: =+Y21+Y23+Y24 -> 137.3543113 | Z29: =+'[1]EERR Cons.'!BO30-'[1]EERR Cons.'!BO28 -> 146.7405493 | AA29: 71.83508109 | AB29: 164.2671671 | AC29: =+AC21+AC23+AC24 -> 145.591389 | AD29: =+AD21+AD23+AD24 -> 152.862889 | AE29: 205.1451038
A30: 25
A31: 26 | B31: Financial Income | C31: 0.94209771 | D31: 7.387465741 | E31: =+D31/C31-1 -> 6.841506951 | H31: Financial Income | I31: 2.52362145 | J31: 2.78236935 | K31: 3.17893199 | L31: 4.24095209 | M31: 4.85621904 | N31: 4.49430581 | O31: 5.00335338 | P31: 6.01289806 | Q31: 6.38418633 | R31: 4.89583577 | S31: 4.91729925 | T31: 5.91813132 | U31: 5.03450279 | V31: 2.96507997 | W31: 1.77239862 | X31: 1.47030009 | Y31: 1.29118209 | Z31: 1.1247755 | AA31: 0.94209771 | AB31: 1.60977117 | AC31: 2.52594328 | AD31: 4.225045984 | AE31: 7.387465741
A32: 27 | B32: Financial Expenses | C32: -20.98774544 | D32: -22.78525323 | E32: =+D32/C32-1 -> 0.08564558761 | H32: Financial Expenses | I32: -20.23082417 | J32: -20.18796966 | K32: -21.83798568 | L32: -22.69717919 | M32: -21.13109963 | N32: -21.06719848 | O32: -20.89572541 | P32: -20.77659963 | Q32: -20.67158708 | R32: -24.94833267 | S32: -22.90039531 | T32: -22.54872133 | U32: -22.52007699 | V32: -22.69825814 | W32: -22.93371934 | X32: -22.30716213 | Y32: -22.18941977 | Z32: -21.40315857 | AA32: -20.98774544 | AB32: -21.7663304 | AC32: -20.90641112 | AD32: -20.63566995 | AE32: -22.78525323
A33: 28 | B33: Exchange rate Differences | C33: -10.34641057 | D33: -3.465873566 | E33: -0.6650168151 | H33: Exchange rate Differences | I33: 0.55841687 | J33: 0.81643913 | K33: 2.74048373 | L33: 4.05398908 | M33: -1.11333583 | N33: -6.8534151 | O33: -1.60431689 | P33: -3.07027684 | Q33: 1.26233637 | R33: 0.85936775 | S33: -7.7517799 | T33: -1.54572489 | U33: -4.81356807 | V33: 4.90670248 | W33: 2.12866111 | X33: 3.487654625 | Y33: -2.800894752 | Z33: 0.6638010225 | AA33: -10.34641057 | AB33: -1.342467726 | AC33: 1.481561271 | AD33: -10.96992127 | AE33: -3.465873566
A34: 29 | B34: Profit (Loss) of Companies Accounted for Using the Equity Method | C34: 2.05044563 | D34: 3.19429745 | E34: 0.5578552307 | H34: Profit (Loss) of Companies Accounted for Using the Equity Method | I34: 0.7398045 | J34: 1.10789726 | K34: 1.29245793 | L34: -0.23659016 | M34: 4.65037762 | N34: 2.09918505 | O34: 2.82230545 | P34: 1.81704674 | Q34: 2.3436588 | R34: 2.56469278 | S34: 2.18045173 | T34: 2.01294988 | U34: 2.34338429 | V34: 2.14213787 | W34: 2.18435165 | X34: 3.28002201 | Y34: 1.37134892 | Z34: 1.9524835 | AA34: 2.05044563 | AB34: 1.32355669 | AC34: 2.61468288 | AD34: 2.60789817 | AE34: 3.19429745
A35: 30 | B35: Other Profit (Loss) | C35: 812.7531375 | D35: -18.48213692 | E35: - | H35: Other Profit (Loss) | I35: -4.60260922 | J35: 14.58681899 | K35: -4.43280111 | L35: -90.35632745 | M35: -4.17484496 | N35: -9.67563361 | O35: -5.49076069 | P35: -34.22733968 | Q35: -4.51412636 | R35: -10.757167 | S35: -9.97992889 | T35: -84.09440526 | U35: -29.42152742 | V35: -9.42644867 | W35: -7.9983525 | X35: -193.317708 | Y35: -21.53812046 | Z35: -22.66353427 | AA35: 812.7531375 | AB35: -161.9048495 | AC35: -16.21641087 | AD35: -16.07942807 | AE35: -18.48213692
A36: 31
A37: 32 | B37: Non-Operating Income | C37: 784.4115249 | D37: -34.15150052 | E37: - | H37: Non-Operating Income | I37: =SUM(I31:I35) -> -21.01159057 | J37: -0.89444493 | K37: -19.05891314 | L37: -104.9951556 | M37: -16.91268376 | N37: -31.00275633 | O37: -20.16514416 | P37: -50.24427135 | Q37: -15.19553194 | R37: -27.38560337 | S37: -33.53435312 | T37: -100.2577703 | U37: -49.3772854 | V37: -22.11078649 | W37: -24.84666046 | X37: -207.3868934 | Y37: -43.86590397 | Z37: -40.32563282 | AA37: 784.4115249 | AB37: -182.0803197 | AC37: -30.50063456 | AD37: =SUM(AD31:AD35) -> -40.85207514 | AE37: -34.15150052
A38: 33
A39: 34 | B39: Profit (Loss) Before Taxes | C39: 803.2954718 | D39: 116.9753432 | E39: -0.8543806764 | H39: Profit (Loss) Before Taxes | I39: =I37+I27 -> 74.2168738 | J39: 97.21098172 | K39: 95.43427411 | L39: 55.82012035 | M39: 88.04627345 | N39: 64.17497211 | O39: 76.68130947 | P39: 99.90198397 | Q39: 86.36234492 | R39: 80.40944012 | S39: 81.32811843 | T39: 22.00214131 | U39: 62.3968582 | V39: 72.17015921 | W39: 88.03666669 | X39: -90.40049647 | Y39: 38.06231404 | Z39: 54.28069954 | AA39: 803.2954718 | AB39: -70.46438268 | AC39: 62.26944393 | AD39: =AD37+AD27 -> 56.72881536 | AE39: 116.9753432
A40: 35
A41: 36 | B41: Income Tax Expense | C41: -202.3945265 | D41: -36.31523069 | E41: -0.8205720712 | H41: Income Tax Expense | I41: -13.69505232 | J41: -18.88284886 | K41: -25.22348133 | L41: 23.72118917 | M41: -23.63957486 | N41: -19.41015924 | O41: -22.80154086 | P41: -32.56690244 | Q41: -20.02777423 | R41: -19.03428903 | S41: -26.63555254 | T41: -2.51873021 | U41: -21.93718259 | V41: -22.50292201 | W41: -25.82951456 | X41: 27.51814101 | Y41: -79.27842756 | Z41: -21.39575807 | AA41: -202.3945265 | AB41: 18.0765511 | AC41: -6.389480162 | AD41: -19.02656487 | AE41: -36.31523069
A42: 37
A43: 38 | B43: Profit (Loss) After Tax | C43: 600.9009453 | D43: 80.66011253 | E43: -0.8657680385 | H43: Profit (Loss) After Tax | I43: =I39+I41 -> 60.52182148 | J43: 78.32813286 | K43: 70.21079278 | L43: 79.54130952 | M43: 64.40669859 | N43: 44.76481287 | O43: 53.87976861 | P43: 67.33508153 | Q43: 66.33457069 | R43: 61.37515109 | S43: 54.69256589 | T43: 19.4834111 | U43: 40.45967561 | V43: 49.6672372 | W43: 62.20715213 | X43: =X39+X41 -> -62.88235546 | Y43: -41.21611353 | Z43: 32.88494147 | AA43: 600.9009453 | AB43: -52.38783159 | AC43: 55.87996377 | AD43: =AD39+AD41 -> 37.7022505 | AE43: 80.66011253
A44: 39
A45: 40 | B45: Profit (Loss) Controller | C45: 604.1523469 | D45: 80.56739902 | E45: -0.8666439029 | H45: Profit (Loss) Controller | I45: 56.90250088 | J45: 67.31581931 | K45: 70.13316825 | L45: 76.63340493 | M45: 65.15757396 | N45: 46.49696074 | O45: 56.81723462 | P45: 71.85072127 | Q45: 64.40332946 | R45: 61.31662017 | S45: 59.08722997 | T45: 18.23869284 | U45: 43.69979362 | V45: 54.1301375 | W45: 64.60573424 | X45: 0.457418777 | Y45: -38.89237668 | Z45: 35.09246244 | AA45: 604.1523469 | AB45: -55.05224813 | AC45: 47.6260312 | AD45: 38.84162959 | AE45: 80.56739902
A46: 41 | B46: Profit (Loss) Atributtable to Minority Interest | C46: =+HLOOKUP($C$6,$H$6:$AT$46,A46,FALSE) -> -3.24980319 | D46: 0.09271351 | E46: - | H46: Profit (Loss) Atributtable to Minority Interest | I46: 3.6193206 | J46: 11.01231355 | K46: 0.07762453 | L46: 2.90790405 | M46: -0.7505205 | N46: -1.73214787 | O46: -2.93746601 | P46: -4.50447162 | Q46: 1.13124123 | R46: 0.05853092 | S46: -4.39466408 | T46: 1.24471826 | U46: -3.24011801 | V46: -4.46290031 | W46: -2.39858211 | X46: -63.32374362 | Y46: -2.32373685 | Z46: -2.20752096 | AA46: -3.24980319 | AB46: 2.66395675 | AC46: 8.25997898 | AD46: -1.13502319 | AE46: 0.09271351
B49: (*): The subtotal shown in “OPERATING INCOME” presented herein, differs from the “Profit (loss) from operating activities” line presented in the Financial Statements. This is explained by a change in taxonomy dictated by the CMF (Financial Market Commission), by means of which the concept of “Other Profit (loss)”, which in the case of Colbún are only non-operating items, was incorporated as an operating item in the Financial Statements.

Sheet Operating Income
B5: CHILE | H5: CHILE
A7: 1 | B7: OPERATING INCOME | C7: 3Q21 | D7: 3Q22 | E7: VAR % | H7: OPERATING INCOME | I7: 1Q14 | J7: 2Q14 | K7: 3Q14 | L7: 4Q14 | M7: 1Q15 | N7: 2Q15 | O7: 3Q15 | P7: 4Q15 | Q7: 1Q16 | R7: 2Q16 | S7: 3Q16 | T7: 4Q16 | U7: 1Q17 | V7: 2Q17 | W7: 3Q17 | X7: 4Q17 | Y7: 1Q18 | Z7: 2Q18 | AA7: 3Q18 | AB7: 4Q18 | AC7: 1Q19 | AD7: 2Q19 | AE7: 3Q19 | AF7: 4Q19 | AG7: 1Q20 | AH7: 2Q20 | AI7: 3Q20 | AJ7: 4Q20 | AK7: 1Q21 | AL7: 2Q21 | AM7: 3Q21 | AN7: 4Q21 | AO7: 1Q22 | AP7: 2Q22 | AQ7: 3Q22
A8: 2 | B8: US$ million | H8: US$ million
A9: 3
A10: 4 | B10: OPERATING INCOME | C10: =+SUM(C11:C15) -> 296.190645 | D10: =SUM(D11:D15) -> 429.02 | E10: =D10/C10-1 -> 0.4484589818 | H10: OPERATING INCOME | I10: =SUM(I11:I15) -> 413.2450417 | J10: 408.021862 | K10: 351.2440628 | L10: 330.065546 | M10: 317.0099211 | N10: 358.4592577 | O10: 336.9943298 | P10: 295.2 | Q10: 306.9610497 | R10: 315.1870146 | S10: 285.2660769 | T10: 312.099149 | U10: 334.4072308 | V10: 346.5539311 | W10: 332.5204281 | X10: 342.0930047 | Y10: 353.945148 | Z10: 348.5106391 | AA10: 320.0658521 | AB10: =+AB11+AB12+AB13+AB14+AB15 -> 347.3306585 | AC10: 341.0963878 | AD10: 349.1633498 | AE10: 336.1186962 | AF10: =SUM(AF11:AF15) -> 304.754883 | AG10: 304.9283922 | AH10: 291.7242516 | AI10: 301.1128421 | AJ10: =SUM(AJ11:AJ15) -> 291.6619805 | AK10: =SUM(AK11:AK15) -> 297.6257197 | AL10: =SUM(AL11:AL14) -> 322.2695272 | AM10: =SUM(AM11:AM15) -> 296.190645 | AN10: 330 | AO10: =+SUM(AO11:AO15) -> 361.7119477 | AP10: =+SUM(AP11:AP15) -> 460.9648139 | AQ10: 429.02
A11: 5 | B11: Regulated Customers Sales | C11: =+HLOOKUP($C$7,$H$7:$AP$33,A11,FALSE) -> 92.52233115 | D11: =+HLOOKUP($D$7,$H$7:$AQ$33,A11,FALSE) -> 87.1 | E11: -0.05860564777 | H11: Regulated Customers Sales | I11: 165.97949 | J11: 188.4970777 | K11: 186.6364966 | L11: 183.5071298 | M11: 167.6367766 | N11: 168.7162954 | O11: 144.2941879 | P11: 138 | Q11: 170.958267 | R11: 147.2556937 | S11: 156.8719199 | T11: 162.0333468 | U11: 174.0705929 | V11: 164.9889374 | W11: 169.5950742 | X11: 165.5915659 | Y11: 158.0047894 | Z11: 149.0808431 | AA11: 149.568832 | AB11: =166.6-AB46 -> 142.6203827 | AC11: =148-AC46 -> 120.4077445 | AD11: 121.7284619 | AE11: 122.1433615 | AF11: =133.84807263-AF46 -> 104.9458342 | AG11: =114.6884281-AG46 -> 85.40246028 | AH11: =95.65596281-AH46 -> 70.5972025 | AI11: =117.68062571-AI46 -> 90.903762 | AJ11: =110.34880305-AJ46 -> 82.93251309 | AK11: =107.74954268-AK46 -> 80.39431852 | AL11: 88.74323033 | AM11: 92.52233115 | AN11: 87.5863065 | AO11: 68.38047164 | AP11: 75.41440996 | AQ11: 87.1
A12: 6 | B12: Nonregulated Customers Sales | C12: =+HLOOKUP($C$7,$H$7:$AP$33,A12,FALSE) -> 149.1249856 | D12: =+HLOOKUP($D$7,$H$7:$AQ$33,A12,FALSE) -> 244.38 | E12: 0.6387595885 | H12: Nonregulated Customers Sales | I12: 150.7724308 | J12: 123.9220198 | K12: 120.6628057 | L12: 106.7553466 | M12: 73.03164146 | N12: 86.39264636 | O12: 96.76054505 | P12: 101.5 | Q12: 90.93732509 | R12: 88.19637843 | S12: 87.8180694 | T12: 116.2780659 | U12: 89.85985429 | V12: 97.30383006 | W12: 106.3020743 | X12: 120.751438 | Y12: 141.7727466 | Z12: 141.2045639 | AA12: 142.1747094 | AB12: =180-AB47 -> 173.0259539 | AC12: =164-AC47 -> 155.6565008 | AD12: 157.8037173 | AE12: 180.1841928 | AF12: =186.49362536-AF47 -> 178.3212548 | AG12: =168.538033-AG47 -> 163.0798338 | AH12: =171.75554184-AH47 -> 167.3929302 | AI12: =169.27509729-AI47 -> 162.7113482 | AJ12: =188.34526278-AJ47 -> 182.3415668 | AK12: =166.75441463-AK47 -> 160.1549363 | AL12: 162.5224941 | AM12: 149.1249856 | AN12: 195.0519759 | AO12: 230.8654748 | AP12: 240.1186774 | AQ12: 244.38
A13: 7 | B13: Energy and Capacity Sales | C13: 45.74332822 | D13: 87.56 | E13: 0.9141589256 | H13: Energy and Capacity Sales | I13: 1.5028241 | J13: 49.89418007 | K13: 4.41649422 | L13: 0.11559316 | M13: 37.97244843 | N13: 61.59029015 | O13: 31.33417727 | P13: 22.6 | Q13: 15.92648289 | R13: 35.50654675 | S13: 2.81366873 | T13: -0.83844826 | U13: 25.16380422 | V13: 43.33734609 | W13: 14.41788388 | X13: 16.36640532 | Y13: 31.97506211 | Z13: 39.21289618 | AA13: 11.76293228 | AB13: =16.75352979-AB48 -> 10.46207556 | AC13: =52.6-AC48 -> 47.76556075 | AD13: 43.1580533 | AE13: 6.18601026 | AF13: =7.57846146216136-AF48 -> 4.566894832 | AG13: =37.90068371-AG48 -> 36.2426006 | AH13: =31.0031451-AH48 -> 27.08840919 | AI13: =38.46334234-AI48 -> 30.27700583 | AJ13: =24.28213842-AJ48 -> 15.14331311 | AK13: =27.35959185-AK48 -> 24.85040681 | AL13: 59.43367155 | AM13: 45.74332822 | AN13: 42.52746147 | AO13: 53.89806435 | AP13: 136.9836274 | AQ13: 87.56
A14: 8 | B14: Transmission Tolls | C14: =+HLOOKUP($C$7,$H$7:$AP$33,A14,FALSE) -> 0 | D14: 0 | H14: Transmission Tolls | I14: 41.15603441 | J14: 45.09369485 | K14: 39.17940499 | L14: 37.81524442 | M14: 36.0248571 | N14: 39.49619045 | O14: 37.8765588 | P14: 31.7 | Q14: 28.42025732 | R14: 43.98865282 | S14: 37.40508068 | T14: 32.42919113 | U14: 40.14103432 | V14: 35.80881715 | W14: 36.7775417 | X14: 35.56690203 | Y14: 16.34087799 | Z14: 13.9819384 | AA14: 11.01078344 | AB14: 15.06275686 | AC14: =10.45666325-AC49 -> 10.45666325 | AD14: 18.08390367 | AE14: 20.12816116 | AF14: =12.92461491-AF49 -> 12.92461491 | AG14: =15.14027786-AG49 -> 15.14027786 | AH14: 19.75423407 | AI14: 14.26508391 | AJ14: 6.1290477 | AK14: =26.02272966-AK49 -> 26.02272966 | AL14: 11.57013126 | AM14: 0 | AN14: 0 | AO14: 0 | AP14: 0 | AQ14: 0
A15: 9 | B15: Other Operating Income | C15: 8.8 | D15: 9.98 | E15: 0.1340909091 | H15: Other Operating Income | I15: 53.83426243 | J15: 0.61488959 | K15: 0.34886133 | L15: 1.87223193 | M15: 2.34419745 | N15: 2.2638354 | O15: 26.72886082 | P15: 1.4 | Q15: 0.71871745 | R15: 0.23974293 | S15: 0.35733819 | T15: 2.19699338 | U15: 5.17194505 | V15: 5.11500034 | W15: 5.427854 | X15: 3.81669347 | Y15: 5.85167199 | Z15: 5.03039747 | AA15: 5.54859507 | AB15: =7.3-AB50 -> 6.1594895 | AC15: =8-AC50 -> 6.80991851 | AD15: 8.38921362 | AE15: 7.47697047 | AF15: =11.22495761-AF50 -> 3.99628419 | AG15: =6.34286927-AG50 -> 5.06321972 | AH15: =8.34545564-AH50 -> 6.89147567 | AI15: =4.31825038-AI50 -> 2.95564212 | AJ15: =6.63551003907104-AJ50 -> 5.115539849 | AK15: =7.69899216945612-AK50 -> 6.203328409 | AL15: =9.90659021544207-AL50 -> 8.661237185 | AM15: 8.8 | AN15: 4.906439922 | AO15: 8.567936897 | AP15: 8.448099186 | AQ15: 9.98
A16: 10
A17: 11 | B17: RAW MATERIALS AND CONSUMABLES USED | C17: =SUM(C18:C23) -> -235.4236591 | D17: =SUM(D18:D23) -> -218.08 | E17: =D17/C17-1 -> -0.07366999219 | H17: RAW MATERIALS AND CONSUMABLES USED | I17: =SUM(I18:I23) -> -275.3512953 | J17: -245.5766084 | K17: -213.7606767 | L17: -149.0196396 | M17: -205.1628939 | N17: -201.2656945 | O17: -136.0247953 | P17: -98.7 | Q17: -132.7584311 | R17: -150.1581994 | S17: -154.7508682 | T17: -142.5781022 | U17: -167.2644137 | V17: -175.7502743 | W17: -147.1765337 | X17: -124.0942045 | Y17: -173.8389368 | Z17: -181.1328813 | AA17: -146.2771449 | AB17: -116.7343759 | AC17: -170.4712577 | AD17: -170.7973875 | AE17: -152.5308283 | AF17: -117.2653057 | AG17: -128.9747912 | AH17: -125.1574781 | AI17: -117.6175923 | AJ17: -103.6453032 | AK17: =+SUM(AK18:AK23) -> -145.8140055 | AL17: -174.6367167 | AM17: -235.4236591 | AN17: -152.8107406 | AO17: -211.9630536 | AP17: -298.746831 | AQ17: -218.08
A18: 12 | B18: Transmission Tolls | C18: =+HLOOKUP($C$7,$H$7:$AP$33,A18,FALSE) -> -31.3 | D18: =+HLOOKUP($D$7,$H$7:$AQ$33,A18,FALSE) -> -30.31 | E18: -0.03162939297 | H18: Transmission Tolls | I18: -48.86781586 | J18: -36.53617391 | K18: -36.23233357 | L18: -40.28164129 | M18: -39.09474281 | N18: -34.68909356 | O18: -34.50693442 | P18: -33.3 | Q18: -34.79643286 | R18: -36.29008416 | S18: -35.83344452 | T18: -34.90495013 | U18: -40.87005316 | V18: -36.60748207 | W18: -38.84273779 | X18: -40.68566885 | Y18: -39.21300991 | Z18: -31.77028792 | AA18: -26.52757568 | AB18: =+-32.17954707-AB53 -> -32.17954707 | AC18: =+-32.9777754-AC53 -> -32.4816121 | AD18: =+-34.29679217-AD53 -> -33.56645593 | AE18: -49.28598399 | AF18: =+-20.88005158-AF53 -> -19.9606519 | AG18: =+-21.55022939-AG53 -> -20.85022939 | AH18: =+-26.60999613-AH53 -> -24.39060995 | AI18: =+-26.50304141-AI53 -> -25.25811334 | AJ18: =+-38.09702692-AJ53 -> -36.94191648 | AK18: =+-31.25610667-AK53 -> -30.83569173 | AL18: -36.57968775 | AM18: -31.3 | AN18: -28.74088738 | AO18: -34.99926453 | AP18: -35.36130964 | AQ18: -30.31
A19: 13 | B19: Energy and Capacity Purchases | C19: -18.4 | D19: =+HLOOKUP($D$7,$H$7:$AQ$33,A19,FALSE) -> -36.07 | E19: 0.960326087 | H19: Energy and Capacity Purchases | I19: -18.03067094 | J19: -3.35914114 | K19: -20.36948751 | L19: -29.14777803 | M19: -4.51879543 | N19: -9.21594438 | O19: -10.38048916 | P19: -16.5 | Q19: -5.54957129 | R19: -6.92936581 | S19: -38.77417007 | T19: -34.71847203 | U19: -7.45129856 | V19: -8.1270384 | W19: -12.17021648 | X19: -15.21722835 | Y19: -7.64242523 | Z19: -8.25043839 | AA19: -12.82375993 | AB19: =+-10.25707385-AB54 -> -10.25332315 | AC19: =+-2.75986665-AC54 -> -2.48795662 | AD19: =+-13.18502617-AD54 -> -12.81784666 | AE19: -30.11858333 | AF19: =+-18.77742197-AF54 -> -18.42750454 | AG19: =+-15.50763813-AG54 -> -14.20763813 | AH19: =+-7.04974417-AH54 -> -6.56163362 | AI19: =+-8.86610442-AI54 -> -8.80638621 | AJ19: =+-22.67480489-AJ54 -> -22.67467628 | AK19: =+-15.90505726-AK54 -> -15.5201909 | AL19: -12.66320576 | AM19: -18.4 | AN19: -22.74730123 | AO19: -28.38441613 | AP19: -38.24720703 | AQ19: -36.07
A20: 14 | B20: Gas Consumption | C20: -128.1618704 | D20: -89.83 | E20: -0.2990895054 | H20: Gas Consumption | I20: -143.059211 | J20: -115.2882382 | K20: -64.6235584 | L20: -18.6760698 | M20: -95.07791346 | N20: -96.24686656 | O20: -48.7651433 | P20: -11.3 | Q20: -55.49246531 | R20: -48.62560453 | S20: -29.35169212 | T20: -46.49917139 | U20: -74.42883029 | V20: -74.67155039 | W20: -44.97219194 | X20: -22.57227544 | Y20: -81.83426447 | Z20: -91.75216653 | AA20: -63.27253088 | AB20: =+-51.49424782-AB55 -> -26.20851482 | AC20: =+-103.54780074-AC55 -> -83.93561436 | AD20: =+-95.37933399-AD55 -> -79.20287668 | AE20: -48.18053414 | AF20: =+-64.13887255-AF55 -> -43.38265927 | AG20: =+-68.50728894-AG55 -> -57.40728894 | AH20: =+-69.67391141-AH55 -> -55.09379143 | AI20: =+-75.50659227-AI55 -> -54.87024677 | AJ20: =+-31.72562505-AJ55 -> -12.15615191 | AK20: =+-66.27092621-AK55 -> -51.14268073 | AL20: -76.86257017 | AM20: -128.1618704 | AN20: -64.5917074 | AO20: -97.4816015 | AP20: -128.0113956 | AQ20: -89.83
A21: 15 | B21: Diesel Consumption | C21: -18.83520717 | D21: -7.21 | E21: -0.6172062279 | H21: Diesel Consumption | I21: -22.91047446 | J21: -43.01070583 | K21: -40.59861654 | L21: -3.2749098 | M21: -22.49692987 | N21: -18.09947091 | O21: -1.51904044 | P21: -2 | Q21: -2.09022608 | R21: -23.23100581 | S21: -13.09737288 | T21: -2.91121008 | U21: -6.96988291 | V21: -16.59391297 | W21: -4.99039669 | X21: -2.59113864 | Y21: -3.00858503 | Z21: -4.84106933 | AA21: -3.63770848 | AB21: =+-3.58230685-AB56 -> -3.58230685 | AC21: =+-9.14473538-AC56 -> -9.14473538 | AD21: -2.14643662 | AE21: -0.41594636 | AF21: =+-0.974576780847656-AF56 -> -0.9745767808 | AG21: -4.29868093 | AH21: =+-2.94319108-AH56 -> -2.94319108 | AI21: -0.4181534 | AJ21: -1.86275127 | AK21: =+-16.70689078-AK56 -> -16.70689078 | AL21: -7.34731434 | AM21: -18.83520717 | AN21: -6.18025114 | AO21: -7.05932875 | AP21: -50.75802261 | AQ21: -7.21
A22: 16 | B22: Coal Consumption | C22: -26.62658152 | D22: -41.57 | E22: 0.5612218177 | H22: Coal Consumption | I22: -23.41590613 | J22: -25.47150925 | K22: -24.22954865 | L22: -19.28864477 | M22: -26.61070354 | N22: -22.17668444 | O22: -20.44824129 | P22: -8.4 | Q22: -18.66597363 | R22: -16.86084202 | S22: -18.84416673 | T22: -9.00977844 | U22: -18.26781412 | V22: -19.58798553 | W22: -21.77500257 | X22: -14.18232266 | Y22: -22.11838772 | Z22: -22.37694036 | AA22: -23.06863908 | AB22: -19.23463008 | AC22: -25.9519975 | AD22: -25.32959303 | AE22: -7.9583245 | AF22: -14.40621734 | AG22: -20.79586649 | AH22: -21.1839025 | AI22: -17.54565283 | AJ22: =+-10.82531167-AJ56 -> -9.90593143 | AK22: -21.10655095 | AL22: -25.1861366 | AM22: -26.62658152 | AN22: -16.74097134 | AO22: -31.01701394 | AP22: -31.9934318 | AQ22: -41.57
A23: 17 | B23: Other Operating Expenses | C23: -12.1 | D23: -13.09 | E23: 0.08181818182 | H23: Other Operating Expenses | I23: -19.06721697 | J23: -21.91084007 | K23: -27.70713202 | L23: -38.35059589 | M23: -17.36380879 | N23: -20.83763466 | O23: -20.40494668 | P23: -27.2 | Q23: -16.16376194 | R23: -18.22129706 | S23: -18.8500219 | T23: -14.53452014 | U23: -19.27653464 | V23: -20.16230495 | W23: -24.42598822 | X23: -28.84557053 | Y23: -20.02226443 | Z23: -22.14197879 | AA23: -16.94693087 | AB23: =+-28.76885844-AB57 -> -25.2760539 | AC23: =+-19.58196495-AC57 -> -16.46934171 | AD23: =+-21.03649055-AD57 -> -17.73417855 | AE23: -16.57145601 | AF23: =+-23.46560624-AF57 -> -20.11369588 | AG23: =+-13.36357333-AG57 -> -11.41508732 | AH23: =+-17.51902408-AH57 -> -14.98434953 | AI23: =+-12.96304668-AI57 -> -10.71903978 | AJ23: =+-24.00240708-AJ57 -> -20.10387587 | AK23: =+-12.00200043-AK57 -> -10.50200043 | AL23: -15.99780203 | AM23: -12.1 | AN23: -13.80962212 | AO23: -13.02142877 | AP23: -14.37546438 | AQ23: -13.09
A24: 18
A25: 19 | B25: GROSS PROFIT | C25: =C17+C10 -> 60.76698582 | D25: =D17+D10 -> 210.94 | E25: 2.471292794 | H25: GROSS PROFIT | I25: =I17+I10 -> 137.8937464 | J25: 162.4452537 | K25: 137.4833861 | L25: 181.0459064 | M25: 111.8470272 | N25: 157.1935632 | O25: 200.9695345 | P25: 196.5 | Q25: 174.2026186 | R25: 165.0288152 | S25: 130.5152087 | T25: 169.5210468 | U25: 167.1428171 | V25: 170.8036568 | W25: 185.3438944 | X25: 217.9988002 | Y25: 180.1062112 | Z25: 167.3777577 | AA25: 173.7887072 | AB25: 230.5962827 | AC25: 170.6251301 | AD25: 178.3659623 | AE25: 183.5878678 | AF25: =AF17+AF10 -> 187.4895773 | AG25: 175.953601 | AH25: 166.5667735 | AI25: 183.4952498 | AJ25: 188.0166773 | AK25: =AK17+AK10 -> 151.8117142 | AL25: =AL17+AL10 -> 147.6328106 | AM25: =AM17+AM10 -> 60.76698582 | AN25: 177.2256721 | AO25: 149.7488941 | AP25: 162.2179829 | AQ25: 210.94
A26: 20
A27: 21 | B27: Personnel Expenses | C27: =+HLOOKUP($C$7,$H$7:$AP$33,A27,FALSE) -> -17.7358885 | D27: =+HLOOKUP($D$7,$H$7:$AQ$33,A27,FALSE) -> -18.94 | E27: 0.06789124217 | H27: Personnel Expenses | I27: -13.51128856 | J27: -15.73069479 | K27: -14.94375202 | L27: -15.52134282 | M27: -13.95403751 | N27: -14.80528035 | O27: -13.73918705 | P27: -13.4 | Q27: -14.19469086 | R27: -15.02867498 | S27: -16.11047719 | T27: -16.58457609 | U27: -15.69357597 | V27: -16.25682845 | W27: -17.7468549 | X27: -21.24011352 | Y27: -19.39190297 | Z27: -18.47528936 | AA27: -17.7550566 | AB27: =+-19.52008206-AB61 -> -18.01568831 | AC27: =+-18.14563445-AC61 -> -16.68162818 | AD27: -17.08685737 | AE27: -16.93553758 | AF27: -17.4590008 | AG27: =+-15.10311077-AG61 -> -13.50311077 | AH27: =+-15.96317607-AH61 -> -14.4370535 | AI27: =+-16.54621755-AI61 -> -15.01255573 | AJ27: =+-17.7444132051426-AJ61 -> -16.21795833 | AK27: =+-21.2684943257862-AK61 -> -19.42802221 | AL27: =+-21.5443199442137-AL61 -> -20.04535335 | AM27: =+-19.2992554288968-AM61 -> -17.7358885 | AN27: -16.0796376 | AO27: -17.63408386 | AP27: -19.52897877 | AQ27: -18.94
A28: 22 | B28: Other Expenses, by nature | C28: =+HLOOKUP($C$7,$H$7:$AP$33,A28,FALSE) -> -10.8 | D28: =+HLOOKUP($D$7,$H$7:$AQ$33,A28,FALSE) -> -11.63 | E28: 0.07685185185 | H28: Other Expenses, by nature | I28: -4.62975934 | J28: -5.88452366 | K28: -5.56829206 | L28: -6.52202935 | M28: -5.11508777 | N28: -6.02196057 | O28: -6.34020906 | P28: -11 | Q28: -6.50208238 | R28: -8.00977248 | S28: -7.952575 | T28: -9.17278915 | U28: -8.06153863 | V28: -6.98169231 | W28: -7.04229809 | X28: -9.72204743 | Y28: -7.0583631 | Z28: -7.22304011 | AA28: -7.05174707 | AB28: =+-10.4942574-AB62 -> -9.11960065 | AC28: =+-5.57047109-AC62 -> -5.04427051 | AD28: -5.98285537 | AE28: -3.91823739 | AF28: -6.08522447 | AG28: =+-11.13666763-AG62 -> -9.68515364 | AH28: =+-10.3069637-AH62 -> -10.39199872 | AI28: =+-10.66756838-AI62 -> -9.15303383 | AJ28: =+-8.86662309606035-AJ62 -> -8.129815556 | AK28: =+-13.7149330412444-AK62 -> -11.9634325 | AL28: =+-14.3817598902411-AL62 -> -12.5494774 | AM28: -10.8 | AN28: -15.05374819 | AO28: -11.53103683 | AP28: -11.59743994 | AQ28: -11.63
A29: 23 | B29: Depreciation and Amortization Expenses | C29: -44.2 | D29: -45.14 | E29: 0.02126696833 | H29: Depreciation and Amortization Expenses | I29: -41.95180557 | J29: -46.18550976 | K29: -46.34147553 | L29: -47.89565758 | M29: -47.45246057 | N29: -48.38494037 | O29: -48.86187234 | P29: -49 | Q29: -47.85902865 | R29: -47.10370972 | S29: -49.02368411 | T29: -52.04330969 | U29: -51.53749131 | V29: -52.33832093 | W29: -51.70911498 | X29: -35.6707217 | Y29: -50.46834023 | Z29: -50.57771036 | AA29: -51.21465688 | AB29: =+-60.0190398-AB63 -> -51.43160203 | AC29: =+-62.31854023-AC63 -> -51.45694854 | AD29: -52.2810241 | AE29: -52.09153554 | AF29: -48.78308441 | AG29: =+-60.57309273-AG63 -> -49.37309273 | AH29: =+-60.98348462-AH63 -> -49.50498411 | AI29: =+-62.10269554-AI63 -> -49.91973005 | AJ29: =+-62.95540184-AJ63 -> -51.26378088 | AK29: =+-55.4260933129534-AK63 -> -46.47815436 | AL29: =+-52.1342169370466-AL63 -> -43.34954645 | AM29: -44.2 | AN29: -43.71692089 | AO29: -43.99926494 | AP29: -46.39916889 | AQ29: -45.14
A30: 24
A31: 25 | B31: OPERATING INCOME (LOSS) | C31: =C25+C27+C28+C29 -> -11.96890268 | D31: =D25+D27+D28+D29 -> 135.23 | E31: - | H31: OPERATING INCOME (LOSS) | I31: =I25+I27+I28+I29 -> 77.8008929 | J31: 94.64452548 | K31: 70.62986651 | L31: 111.1068767 | M31: 45.32544134 | N31: 87.98138193 | O31: 132.0282661 | P31: 123.1 | Q31: 105.6468167 | R31: 94.88665807 | S31: 57.42847236 | T31: 91.72037184 | U31: 91.85021118 | V31: 95.22681507 | W31: 108.8456264 | X31: 151.3659176 | Y31: 103.1876049 | Z31: 91.10171791 | AA31: 97.76724665 | AB31: 152.0293917 | AC31: 97.44228288 | AD31: 103.0152255 | AE31: 110.6425573 | AF31: =AF25+AF27+AF28+AF29 -> 115.1622676 | AG31: =AG25+AG27+AG28+AG29 -> 103.3922439 | AH31: 92.23273715 | AI31: 109.4099302 | AJ31: 112.4051225 | AK31: 73.94210509 | AL31: 71.68843338 | AM31: -11.96890268 | AN31: =AN25+AN27+AN28+AN29 -> 102.3753654 | AO31: =AO25+AO27+AO28+AO29 -> 76.58450846 | AP31: =AP25+AP27+AP28+AP29 -> 84.6923953 | AQ31: 135.23
A32: 26
A33: 27 | B33: EBITDA | C33: =C31-C29 -> 32.23109732 | D33: =D31-D29 -> 180.37 | E33: 4.596148285 | H33: EBITDA | I33: =I31-I29 -> 119.7526985 | J33: 140.8300352 | K33: 116.971342 | L33: 159.0025342 | M33: 92.77790191 | N33: 136.3663223 | O33: 180.8901384 | P33: 172.1 | Q33: 153.5058454 | R33: 141.9903678 | S33: 106.4521565 | T33: 143.7636815 | U33: 143.3877025 | V33: 147.565136 | W33: 160.5547414 | X33: 187.0366393 | Y33: 153.6559452 | Z33: 141.6794283 | AA33: 148.9819035 | AB33: 203.4609937 | AC33: 148.8992314 | AD33: 155.2962496 | AE33: 162.7340929 | AF33: =AF31-AF29 -> 163.945352 | AG33: =172.34723633-AG67 -> 152.7653366 | AH33: =155.26443032-AH67 -> 141.7377213 | AI33: =174.98602269-AI67 -> 159.3296602 | AJ33: =AJ31-AJ29 -> 163.6689034 | AK33: =137.354311322426-AK67 -> 120.4202595 | AL33: 115.0914896 | AM33: =71.84-AM67 -> 51.97726671 | AN33: 146.0922863 | AO33: 120.5837734 | AP33: 131.0915642 | AQ33: 180.37
B35: On September 30, Colbún executed the sale of its subsidiary Colbún Transmission S.A. to Alfa Desarrollo SpA, controlled 80% by APG Energy and Infra Investments and 20% by Celeo Redes. The energy transmission infrastructure sold corresponds to 899 km of transmission lines divided into 335 km of lines belonging to the National segment, 70 km belonging to the Zonal segment and 494 km belonging to the Dedicated segment. Additionally, Colbún Transmission S.A. owns 27 substations. Given this, results from Chile includes only the generation business from 4Q21 onwards.
B40: PERÚ | H40: PERÚ
A42: 1 | B42: OPERATING INCOME | C42: 3Q21 | D42: 3Q22 | E42: VAR % | H42: ENERGY SALES | I42: 1Q14 | J42: 2Q14 | K42: 3Q14 | L42: 4Q14 | M42: 1Q15 | N42: 2Q15 | O42: 3Q15 | P42: 4Q15 | Q42: 1Q16 | R42: 2Q16 | S42: 3Q16 | T42: 4Q16 | U42: 1Q17 | V42: 2Q17 | W42: 3Q17 | X42: 4Q17 | Y42: 1Q18 | Z42: 2Q18 | AA42: 3Q18 | AB42: 4Q18 | AC42: 1Q19 | AD42: 2Q19 | AE42: 3Q19 | AF42: 4Q19 | AG42: 1Q20 | AH42: 2Q20 | AI42: 3Q20 | AJ42: 4Q20 | AK42: 1Q21 | AL42: 2Q21 | AM42: 3Q21 | AN42: 4Q21 | AO42: 1Q22 | AP42: 2Q22 | AQ42: 3Q22
A43: 2 | B43: US$ million | D43: 1Q19 | H43: US$ million | AC43: 1Q19 | AD43: 1Q19 | AE43: 1Q19 | AF43: 1Q19 | AJ43: 1Q19
A44: 3
A45: 4 | B45: OPERATING INCOME | C45: =+HLOOKUP($C$42,$H$42:$AP$67,A45,FALSE) -> 48.97740145 | D45: =+HLOOKUP($D$42,$H$42:$AQ$67,A45,FALSE) -> 59.16 | E45: =D45/C45-1 -> 0.2079040179 | H45: OPERATING INCOME | Q45: =SUM(Q46:Q50) -> 55.5836555 | R45: 54.9629184 | S45: 49.08269486 | T45: 57.09728098 | U45: 47.63629382 | V45: 46.97150746 | W45: 51.49399726 | X45: 46.73564169 | Y45: =SUM(Y46:Y50) -> 52.67304992 | Z45: 52.28931723 | AA45: 40.08518749 | AB45: 38.38562811 | AC45: 41.96027547 | AD45: 41.30603439 | AE45: 44.20324335 | AF45: =SUM(AF46:AF50) -> 47.314849 | AG45: 37.68189971 | AH45: 34.79008787 | AI45: 42.88955752 | AJ45: 44.07878145 | AK45: 37.95955131 | AL45: 39.86556781 | AM45: 48.97740145 | AN45: =SUM(AN46:AN50) -> 45.01856621 | AO45: =SUM(AO46:AO50) -> 55.11910813 | AP45: =SUM(AP46:AP50) -> 52.99092134 | AQ45: 59.16
A46: 5 | B46: Regulated Customers Sales | C46: 24.59485984 | D46: =+HLOOKUP($D$42,$H$42:$AQ$67,A46,FALSE) -> 36.05 | E46: =D46/C46-1 -> 0.4657534231 | H46: Regulated Customers Sales | Q46: 32.4603132 | R46: 29.13836609 | S46: 28.33215872 | T46: 29.40012506 | U46: 30.41764161 | V46: 29.19358075 | W46: 31.3446193 | X46: 31.73962741 | Y46: 28.93242343 | Z46: 27.54464882 | AA46: 26.83765891 | AB46: 23.9796173 | AC46: 27.59225554 | AD46: 27.79782504 | AE46: 27.15966535 | AF46: 28.90223843 | AG46: 29.28596782 | AH46: 25.05876031 | AI46: 26.77686371 | AJ46: 27.41628996 | AK46: 27.35522416 | AL46: 26.13425835 | AM46: 24.59485984 | AN46: 27.17023502 | AO46: 36.34981764 | AP46: 35.65468949 | AQ46: 36.05
A47: 6 | B47: Nonregulated Customers Sales | C47: 4.57757677 | D47: 4.84 | E47: =D47/C47-1 -> 0.05732798011 | H47: Nonregulated Customers Sales | Q47: 5.6 | R47: 6.6 | S47: 6.16894181 | T47: 0.29570798 | U47: 3.99167514 | V47: 3.81956868 | W47: 3.30343327 | X47: 0.01502398 | Y47: 7.91334629 | Z47: 9.32997049 | AA47: 5.39618198 | AB47: 6.97404608 | AC47: 8.34349919 | AD47: 7.69667087 | AE47: 8.15981824 | AF47: 8.17237052 | AG47: 5.45819923 | AH47: 4.36261168 | AI47: 6.56374904 | AJ47: 6.00369599 | AK47: 6.59947835 | AL47: 5.78307134 | AM47: 4.57757677 | AN47: 5.60997543 | AO47: 4.99822664 | AP47: 4.65102745 | AQ47: 4.84
A48: 7 | B48: Energy and Capacity Sales | C48: 18.62841716 | D48: 16.99 | E48: =D48/C48-1 -> -0.08795256977 | H48: Sales to Other Generators | Q48: 8.59535329 | R48: 6.40179513 | S48: 5.78726658 | T48: 16.95513299 | U48: 1.47052644 | V48: 3.66164266 | W48: 5.742368 | X48: 2.3145004 | Y48: 1.47969777 | Z48: 3.39435154 | AA48: 6.4587247 | AB48: 6.29145423 | AC48: 4.83443925 | AD48: 4.79139983 | AE48: 7.30009094 | AF48: 3.01156663 | AG48: 1.65808311 | AH48: 3.91473591 | AI48: 8.18633651 | AJ48: 9.13882531 | AK48: 2.50918504 | AL48: 6.70288509 | AM48: 18.62841716 | AN48: 10.47075852 | AO48: 9.64577327 | AP48: 10.9224439 | AQ48: 16.99
A49: 8 | B49: Transmission Tolls | C49: 0 | D49: 0 | E49: - | H49: Transmission Tolls | Q49: 8.92798901 | R49: 12.50225183 | S49: 8.45848025 | T49: 10.02197167 | U49: 10.59247901 | V49: 8.95881925 | W49: 10.08088419 | X49: 11.61420582 | Y49: 12.94820143 | Z49: 10.96570072 | AA49: 0 | AF49: 0 | AG49: 0 | AK49: 0 | AL49: 0 | AM49: 0 | AN49: 0 | AO49: 0 | AP49: 0 | AQ49: 0
A50: 9 | B50: Other Operating Income | C50: 1.17654768 | D50: 1.28 | E50: 0.08792871021 | H50: Other Operating Income | Q50: 0 | R50: 0.32050535 | S50: 0.3358475 | T50: 0.42434328 | U50: 1.16397162 | V50: 1.33789612 | W50: 1.0226925 | X50: 1.05228408 | Y50: 1.399381 | Z50: 1.05464566 | AA50: 1.3926219 | AB50: 1.1405105 | AC50: 1.19008149 | AD50: 1.02013865 | AE50: 1.58366882 | AF50: 7.22867342 | AG50: 1.27964955 | AH50: 1.45397997 | AI50: 1.36260826 | AJ50: 1.51997019 | AK50: 1.49566376 | AL50: 1.24535303 | AM50: 1.17654768 | AN50: 1.76759724 | AO50: 4.12529058 | AP50: 1.7627605 | AQ50: 1.28
A51: 10 | C51: 0 | D51: 0
A52: 11 | B52: RAW MATERIALS AND CONSUMABLES USED | C52: -25.80804084 | D52: -30.58 | E52: =D52/C52-1 -> 0.1849020307 | H52: RAW MATERIALS AND CONSUMABLES USED | Q52: =SUM(Q53:Q57) -> -32.30603898 | R52: -41.79553162 | S52: -30.75945238 | T52: -39.48010516 | U52: -34.35393366 | V52: -33.9733351 | W52: -35.6614528 | X52: -37.40560359 | Y52: =SUM(Y53:Y57) -> -40.77311819 | Z52: -37.8119258 | AA52: -30.2095546 | AB52: =+SUM(AB53:AB57) -> -28.78228824 | AC52: -23.49288295 | AD52: -20.57628506 | AE52: -26.2753691 | AF52: =SUM(AF53:AF57) -> -25.37744075 | AG52: -15.04848601 | AH52: -19.82229126 | AI52: -24.18499868 | AJ52: -25.54262364 | AK52: -17.43352678 | AL52: -22.07914888 | AM52: -25.80804084 | AN52: -23.14809608 | AO52: -25.70447641 | AP52: =SUM(AP53:AP57) -> -27.85222761 | AQ52: -30.58
A53: 12 | B53: Transmission Tolls | C53: -1.47267246 | D53: -1.32 | E53: =D53/C53-1 -> -0.1036703436 | H53: Transmission Tolls | Q53: -8.68693761 | R53: -10.98468411 | S53: -7.52210538 | T53: -8.49769418 | U53: -8.79307028 | V53: -8.42137672 | W53: -9.62910358 | X53: -10.23718113 | Y53: -10.75818659 | Z53: -10.957769 | AA53: -0.66157777 | AC53: -0.4961633 | AD53: -0.73033624 | AE53: -1.30718126 | AF53: -0.91939968 | AG53: -0.7 | AH53: -2.21938618 | AI53: -1.24492807 | AJ53: -1.15511044 | AK53: -0.42041494 | AL53: -1.32910581 | AM53: -1.47267246 | AN53: -1.45085612 | AO53: -1.72839156 | AP53: -1.42084948 | AQ53: -1.32
A54: 13 | B54: Energy and Capacity Purchases | C54: -0.45685124 | D54: -1.25 | E54: 1.736120405 | H54: Energy and Capacity Purchases | Q54: -2.4822059 | R54: -8.72542825 | S54: -3.15516519 | T54: -1.36595606 | U54: -2.85793803 | V54: -0.0142054 | W54: -0.14726352 | X54: -0.01856188 | Y54: -6.38911806 | Z54: -0.01296899 | AA54: -0.13729294 | AB54: -0.0037507 | AC54: -0.27191003 | AD54: -0.36717951 | AE54: 0 | AF54: -0.34991743 | AG54: -1.3 | AH54: -0.48811055 | AI54: -0.05971821 | AJ54: -0.00012861 | AK54: -0.38486636 | AL54: -0.80649881 | AM54: -0.45685124 | AN54: -0.10758014 | AO54: -0.00398073 | AP54: -2.12649166 | AQ54: -1.25
A55: 14 | B55: Gas Consumption | C55: -21.71192946 | D55: -25.5 | E55: 0.174469549 | H55: Gas Consumption | Q55: -16.86312436 | R55: -19.93932046 | S55: -17.72521496 | T55: -28.32622626 | U55: -20.05521062 | V55: -23.0114942 | W55: -24.28535365 | X55: -24.37191154 | Y55: -18.96529476 | Z55: -23.6114715 | AA55: -24.5482992 | AB55: -25.285733 | AC55: -19.61218638 | AD55: -16.17645731 | AE55: -22.23717163 | AF55: -20.75621328 | AG55: -11.1 | AH55: -14.58011998 | AI55: -20.6363455 | AJ55: -19.56947314 | AK55: -15.12824548 | AL55: -17.25495588 | AM55: -21.71192946 | AN55: -19.52606286 | AO55: -21.88420558 | AP55: -22.16467708 | AQ55: -25.5
A56: 15 | B56: Diesel Consumption | C56: 0 | D56: 0 | E56: - | H56: Diesel Consumption | AA56: -1.3596465 | AB56: 0 | AC56: 0 | AD56: 0 | AE56: 0 | AF56: 0 | AG56: 0 | AH56: 0 | AI56: 0 | AJ56: -0.91938024 | AK56: 0 | AL56: -0.2763207 | AM56: 0 | AN56: 0 | AO56: 0 | AP56: -0.03520169 | AQ56: 0
A57: 16 | B57: Other Operating Expenses | C57: -2.16658768 | D57: -2.51 | E57: 0.1585037722 | H57: Other Operating Expenses | Q57: -4.27377111 | R57: -2.1460988 | S57: -2.35696685 | T57: -1.29022866 | U57: -2.64771473 | V57: -2.52625878 | W57: -1.59973205 | X57: -2.77794904 | Y57: -4.66051878 | Z57: -3.22971631 | AA57: -3.50273819 | AB57: -3.49280454 | AC57: -3.11262324 | AD57: -3.302312 | AE57: -2.73101621 | AF57: -3.35191036 | AG57: -1.94848601 | AH57: -2.53467455 | AI57: -2.2440069 | AJ57: -3.89853121 | AK57: -1.5 | AL57: -2.41226768 | AM57: -2.16658768 | AN57: -2.06359696 | AO57: -2.08789854 | AP57: -2.1050077 | AQ57: -2.51
A58: 17 | C58: 0 | D58: 0
A59: 18 | B59: GROSS PROFIT | C59: 23.16936061 | D59: 28.58 | E59: =D59/C59-1 -> 0.2335256238 | H59: GROSS PROFIT | Q59: =Q52+Q45 -> 23.27761652 | R59: 13.16738678 | S59: 18.32324248 | T59: 17.61717582 | U59: 13.28236016 | V59: 12.99817236 | W59: 15.83254446 | X59: 9.3300381 | Y59: =Y52+Y45 -> 11.89993173 | Z59: 14.47739143 | AA59: 9.87563289 | AB59: 9.60333987 | AC59: 18.46739252 | AD59: 20.72974933 | AE59: 17.92787425 | AF59: =AF52+AF45 -> 21.93740825 | AG59: 22.6334137 | AH59: 14.96779661 | AI59: 18.70455884 | AJ59: 18.53615781 | AK59: 20.52602453 | AL59: 17.78641893 | AM59: 23.16936061 | AN59: 21.87047013 | AO59: 29.41463172 | AP59: =AP52+AP45 -> 25.13869373 | AQ59: 28.58
A60: 19 | C60: 0 | D60: 0
A61: 20 | B61: Personnel Expenses | C61: -1.56336693 | D61: -1.8 | E61: =D61/C61-1 -> 0.1513611843 | H61: Personnel Expenses | Q61: -1.90205561 | R61: -0.95662959 | S61: -1.38904001 | T61: -1.64653396 | U61: -1.35093598 | V61: -1.40341766 | W61: -1.39107256 | X61: -1.70223238 | Y61: -1.44114716 | Z61: -1.51758236 | AA61: -1.66442894 | AB61: -1.50439375 | AC61: -1.46400627 | AD61: -1.61272717 | AE61: -1.19632488 | AF61: -1.91541703 | AG61: -1.6 | AH61: -1.52612257 | AI61: -1.53366182 | AJ61: -1.52645488 | AK61: -1.84047212 | AL61: -1.49896659 | AM61: -1.56336693 | AN61: -1.47984978 | AO61: -2.60759553 | AP61: -1.65451215 | AQ61: -1.8
A62: 21 | B62: Other Expenses, by nature | C62: -1.74326039 | D62: -2.04 | E62: =D62/C62-1 -> 0.1702210477 | H62: Other Expenses, by nature | Q62: -4.65293068 | R62: -3.08935272 | S62: -0.84189765 | T62: -1.86806512 | U62: -0.51768803 | V62: -0.68306328 | W62: -0.97182713 | X62: 10.16285259 | Y62: -0.53674666 | Z62: -0.63847731 | AA62: -0.85316295 | AB62: -1.37465675 | AC62: -0.52620058 | AD62: -0.64479644 | AE62: -0.74230716 | AF62: -1.03055825 | AG62: -1.45151399 | AH62: 0.08503502 | AI62: -1.51453455 | AJ62: -0.73680754 | AK62: -1.75150054 | AL62: -1.83228249 | AM62: -1.74326039 | AN62: -2.11140444 | AO62: -1.90847655 | AP62: -1.73463188 | AQ62: -2.04
A63: 22 | B63: Depreciation and Amortization Expenses | C63: -8.78027041 | D63: -8.88 | E63: =D63/C63-1 -> 0.01135837341 | H63: Depreciation and Amortization Expenses | Q63: -7.98486675 | R63: -7.94888652 | S63: -7.952124 | T63: -8.00239871 | U63: -8.03548296 | V63: -8.03307984 | W63: -7.82208392 | X63: -8.34129989 | Y63: -8.15068562 | Z63: -8.24532123 | AA63: -8.27883402 | AB63: -8.58743777 | AC63: -10.86159169 | AD63: -11.41693009 | AE63: -11.7620011 | AF63: -11.89378896 | AG63: -11.2 | AH63: -11.47850051 | AI63: -12.18296549 | AJ63: -11.69162096 | AK63: -8.94793895 | AL63: -8.78467049 | AM63: -8.78027041 | AN63: -8.93476896 | AO63: -8.82204561 | AP63: -8.8828296 | AQ63: -8.88
A64: 23 | C64: 0 | D64: 0
A65: 24 | B65: OPERATING INCOME (LOSS) | C65: 11.08246288 | D65: 15.86 | E65: =D65/C65-1 -> 0.4310898373 | H65: OPERATING INCOME (LOSS) | Q65: =Q59+Q61+Q62+Q63 -> 8.73776348 | R65: 1.17251795 | S65: 8.14018082 | T65: 6.10017803 | U65: 3.37825319 | V65: 2.87861158 | W65: 5.64756085 | X65: =X59+X61+X62+X63 -> 9.44935842 | Y65: 1.77135229 | Z65: =Z59+Z61+Z62+Z63 -> 4.07601053 | AA65: =AA59+AA61+AA62+AA63 -> -0.92079302 | AB65: -1.8631484 | AC65: 5.61559398 | AD65: 7.05529563 | AE65: 4.22724111 | AF65: 7.09764401 | AG65: 8.38189971 | AH65: 2.04820855 | AI65: =AI59+AI61+AI62+AI63 -> 3.47339698 | AJ65: 4.58127443 | AK65: 7.98611292 | AL65: 5.67049936 | AM65: 11.08246288 | AN65: 9.34444695 | AO65: 16.07651403 | AP65: =AP59+AP61+AP62+AP63 -> 12.8667201 | AQ65: 15.86
A66: 25 | C66: 0 | D66: 0
A67: 26 | B67: EBITDA | C67: 19.86273329 | D67: 24.74 | E67: =D67/C67-1 -> 0.245548618 | H67: EBITDA | Q67: =Q65-Q63 -> 16.72263023 | R67: 9.12140447 | S67: =S65-S63 -> 16.09230482 | T67: =T65-T63 -> 14.10257674 | U67: =U65-U63 -> 11.41373615 | V67: =V65-V63 -> 10.91169142 | W67: 13.46964477 | X67: =X65-X63 -> 17.79065831 | Y67: 9.92203791 | Z67: =Z65-Z63 -> 12.32133176 | AA67: =AA65-AA63 -> 7.358041 | AB67: 6.72428937 | AC67: 16.47718567 | AD67: 18.47222572 | AE67: 15.98924221 | AF67: 18.99143297 | AG67: 19.58189971 | AH67: 13.52670906 | AI67: 15.65636247 | AJ67: =AJ65-AJ63 -> 16.27289539 | AK67: 16.93405187 | AL67: 14.45516985 | AM67: 19.86273329 | AN67: 18.27921591 | AO67: 24.89855964 | AP67: =AP65-AP63 -> 21.7495497 | AQ67: 24.74
B70: (*): The subtotal shown in “OPERATING INCOME” presented herein, differs from the “Profit (loss) from operating activities” line presented in the Financial Statements. This is explained by a change in taxonomy dictated by the CMF (Financial Market Commission), by means of which the concept of “Other Profit (loss)”, which in the case of Colbún are only non-operating items, was incorporated as an operating item in the Financial Statements.

Sheet Non-Operating Income
B4: CHILE | H4: CHILE
A6: 1 | B6: NON-OPERATING INCOME | C6: 3Q21 | D6: 3Q22 | E6: Var (%) | H6: NON-OPERATING INCOME | I6: 1Q14 | J6: 2Q14 | K6: 3Q14 | L6: 4Q14 | M6: 1Q15 | N6: 2Q15 | O6: 3Q15 | P6: 4Q15 | Q6: 1Q16 | R6: 2Q16 | S6: 3Q16 | T6: 4Q16 | U6: 1Q17 | V6: 2Q17 | W6: 3Q17 | X6: 4Q17 | Y6: 1Q18 | Z6: 2Q18 | AA6: 3Q18 | AB6: 4Q18 | AC6: 1Q19 | AD6: 2Q19 | AE6: 3Q19 | AF6: 4Q19 | AG6: 1Q20 | AH6: 2Q20 | AI6: 3Q20 | AJ6: 4Q20 | AK6: 1Q21 | AL6: 2Q21 | AM6: 3Q21 | AN6: 4Q21 | AO6: 1Q22 | AP6: 2Q22 | AQ6: 3Q22
A7: 2 | B7: US$ million | H7: US$ million
A8: 3
A9: 4 | B9: Financial Income | C9: =+HLOOKUP($C$6,$H$6:$AX$23,A9,FALSE) -> 0.91264 | D9: =+HLOOKUP($D$6,$H$6:$AX$23,A9,FALSE) -> 7.39 | E9: =+D9/C9-1 -> 7.097387798 | H9: Financial Income | I9: 1.46622701 | J9: 1.17571889 | K9: 1.73536848 | L9: 1.183904 | M9: 0.95460129 | N9: 1.11481557 | O9: 1.42294038 | P9: 2.02492457 | Q9: 2.5239263 | R9: 2.63922898 | S9: 1.97991607 | T9: 2.33589442 | U9: 2.40355909 | V9: 2.63198629 | W9: 3.0199922 | X9: 4.03769738 | Y9: 4.63448362 | Z9: 4.27836873 | AA9: 4.71033497 | AB9: =6.01289806-AB33 -> 5.71289806 | AC9: =6.38418633-AC33 -> 6.24278412 | AD9: 4.82340286 | AE9: =4.91729925-AE33 -> 4.81436982 | AF9: 5.62722454 | AG9: 5.03450279 | AH9: =2.96507997-AH33 -> 2.84445215 | AI9: =1.77239862-AI33 -> 1.47036231 | AJ9: =1.47030009-AJ33 -> 1.31337612 | AK9: =1.29118209-AK33 -> 1.23448134 | AL9: =1.1247755-AL33 -> 1.07016618 | AM9: =0.942097710000001-AM33 -> 0.91264 | AN9: =1.60977117-AN33 -> 1.56483808 | AO9: =2.52594328-AO33 -> 2.43880639 | AP9: 4.489790284 | AQ9: 7.39
A10: 5 | B10: Financial Expenses | C10: =+HLOOKUP($C$6,$H$6:$AX$23,A10,FALSE) -> -14.3836372 | D10: =+HLOOKUP($D$6,$H$6:$AX$23,A10,FALSE) -> -16.74 | E10: =+D10/C10-1 -> 0.1638224582 | H10: Financial Expenses | I10: -10.62663587 | J10: -18.90671153 | K10: -22.23498913 | L10: -24.20097877 | M10: -22.2258272 | N10: -22.65923026 | O10: -22.1827258 | P10: -23.46806327 | Q10: -21.99552556 | R10: -29.4052137 | S10: -20.34942172 | T10: -17.03109916 | U10: -17.07834872 | V10: -16.9495636 | W10: -18.10619855 | X10: -18.04954205 | Y10: -16.65106813 | Z10: -16.37984412 | AA10: -16.3170241 | AB10: =+-20.77659963-AB34 -> -16.17659963 | AC10: =+-22.87158708-AC34 -> -18.27197276 | AD10: -16.06314994 | AE10: =+-22.90039531-AE34 -> -15.86773439 | AF10: -15.93443744 | AG10: -22.52007699 | AH10: =+-22.69825814-AH34 -> -16.0913121 | AI10: =-22.93371934-AI34 -> -15.99297938 | AJ10: =+-22.3071621318032-AJ34 -> -15.86233329 | AK10: =+-22.189419768481-AK34 -> -15.5633484 | AL10: =+-21.403158571519-AL34 -> -15.18384481 | AM10: =+-20.9877454360415-AM34 -> -14.3836372 | AN10: =+-21.7663304023006-AN34 -> -15.73338623 | AO10: =+-20.9064111211749-AO34 -> -14.62957527 | AP10: -14.80735282 | AQ10: -16.74
A11: 6 | B11: Exchange rate Differences | C11: -8.817484214 | D11: -2.95 | E11: -0.6654374504 | H11: Exchange rate Differences | I11: -8.86518564 | J11: -4.33343643 | K11: -4.35868228 | L11: -4.86344916 | M11: 0.40925102 | N11: 0.09023909 | O11: -11.37959766 | P11: -0.28029471 | Q11: 1.67768272 | R11: 1.89269076 | S11: 0.66604501 | T11: -2.13658886 | U11: -1.15683636 | V11: 0.97049637 | W11: 2.7896323 | X11: 3.2934244 | Y11: -0.9219475 | Z11: -6.20469052 | AA11: -1.23708301 | AB11: =+-3.07027684-AB35 -> -2.37027684 | AC11: =1.26233637-AC35 -> 0.51242419 | AD11: 0.56314343 | AE11: =+-7.7517799-AE35 -> -6.71362074 | AF11: -2.45741578 | AG11: -4.81356807 | AH11: =4.90670248-AH35 -> 6.40156879 | AI11: =2.12866110999999-AI35 -> 2.31332827 | AJ11: =3.48765462486777-AJ35 -> 3.674237405 | AK11: =+-2.8008947524971-AK35 -> -1.787893412 | AL11: =0.663801022497097-AL35 -> 1.023986872 | AM11: =+-10.3464105744538-AM35 -> -8.817484214 | AN11: =+-1.34246772571796-AN35 -> -2.585610896 | AO11: =1.48156127068601-AO35 -> 0.2963012707 | AP11: -10.03534944 | AQ11: -2.95
A12: 7 | B12: Profit (Loss) of Companies Accounted for Using the Equity Method | C12: 2.05044563 | D12: 3.19 | E12: 0.5557593692 | H12: Profit (Loss) of Companies Accounted for Using the Equity Method | I12: 1.32908942 | J12: 1.58538367 | K12: 0.9765417 | L12: -103.2057706 | M12: 1.47986672 | N12: 1.68780221 | O12: 2.31394694 | P12: 1.13847967 | Q12: 1.39519779 | R12: 1.66209927 | S12: 1.43092459 | T12: 0.9259723 | U12: 0.7398045 | V12: 1.10789726 | W12: 1.29245793 | X12: -0.23659016 | Y12: 4.65037762 | Z12: 2.09918505 | AA12: 2.82230545 | AB12: =1.81704674-AB36 -> 2.11704674 | AC12: 2.2436588 | AD12: 2.56469278 | AE12: 2.18045173 | AF12: 2.01294988 | AG12: 2.34338429 | AH12: 2.14213787 | AI12: 2.18435165 | AJ12: 3.28002201 | AK12: 1.37134892 | AL12: 1.9524835 | AM12: 2.05044563 | AN12: 1.32355669 | AO12: 2.61468288 | AP12: 2.61468288 | AQ12: 3.19
A13: 8 | B13: Other Profit (Loss) | C13: 819.3308537 | D13: -17.06 | E13: - | H13: Other Profit (Loss) | I13: 7.67870094 | J13: -0.63490958 | K13: 1.55500893 | L13: -10.01893578 | M13: -0.86712883 | N13: -3.8732335 | O13: 10.51892808 | P13: -6.99994265 | Q13: -0.57909955 | R13: -3.53008108 | S13: -0.45134172 | T13: -9.0108975 | U13: -4.51257971 | V13: 14.86220489 | W13: -3.5680981 | X13: -91.65286416 | Y13: -4.15488447 | Z13: -9.25542999 | AA13: -4.71608568 | AB13: -34.22733968 | AC13: =+-4.51412636-AC36 -> -5.95473565 | AD13: -9.88543437 | AE13: =+-9.97992889-AE36 -> -7.72404622 | AF13: -82.6052488 | AG13: -29.42152742 | AH13: =+-9.42644867-AH36 -> -8.2086154 | AI13: =+-7.9983525-AI36 -> -8.31860086 | AJ13: =+-193.31770803-AJ36 -> -13.07811048 | AK13: =+-21.5381204620468-AK36 -> -21.33224156 | AL13: =+-22.6635342667088-AL36 -> -22.32485976 | AM13: =818.753137540501-AM36 -> 819.3308537 | AN13: =+-161.90484948138-AN36 -> -160.6104499 | AO13: =+-16.21641086587-AO36 -> -14.62049913 | AP13: -13.53698546 | AQ13: -17.06
A14: 9
A15: 10 | B15: Non-Operating Income | C15: 799.092818 | D15: -26.17 | E15: - | H15: Non-Operating Income | I15: -6.63085457 | J15: -17.83436406 | K15: -21.31824758 | L15: -138.730176 | M15: -20.19241098 | N15: -22.43269989 | O15: -18.42127553 | P15: -27.30881591 | Q15: -16.9778183 | R15: -26.80012476 | S15: -16.71994042 | T15: -24.91719769 | U15: -19.6044012 | V15: 2.62302121 | W15: -14.57221422 | X15: -102.6078746 | Y15: =SUM(Y9:Y13) -> -12.44303886 | Z15: -25.46241085 | AA15: -14.73755237 | AB15: -44.94427135 | AC15: =SUM(AC9:AC13) -> -15.2278413 | AD15: -17.99734524 | AE15: -23.3105798 | AF15: -93.3569276 | AG15: =SUM(AG9:AG13) -> -49.3772854 | AH15: -12.91176869 | AI15: =SUM(AI9:AI13) -> -18.34353801 | AJ15: -20.67280824 | AK15: -36.07765311 | AL15: -33.46206802 | AM15: 799.092818 | AN15: -176.0410523 | AO15: -23.90028386 | AP15: -31.27521456 | AQ15: -26.17
A16: 11
A17: 12 | B17: Profit (Loss) Before Taxes | C17: 800.894302 | D17: 109.08 | E17: =D17/C17-1 -> -0.8638022524 | H17: Profit (Loss) Before Taxes | I17: 71.17003833 | J17: 76.81016142 | K17: 49.31161893 | L17: -27.62329935 | M17: 25.13303036 | N17: 65.54868204 | O17: 113.6069905 | P17: 95.74682817 | Q17: 88.66899841 | R17: 68.08653331 | S17: 40.70828973 | T17: 66.80317415 | U17: 72.24580998 | V17: 97.84983628 | W17: 94.27341218 | X17: 48.75804297 | Y17: 90.74492093 | Z17: 65.63930706 | AA17: 83.02969428 | AB17: =99.94054904-AB40 -> 89.38054904 | AC17: =85.56234492-AC40 -> 83.69173524 | AD17: 81.26372462 | AE17: =81.32811843-AE40 -> 87.32465064 | AF17: 21.79317133 | AG17: =62.3968582-AG40 -> 63.10908951 | AH17: =72.1701592-AH40 -> 79.32096845 | AI17: =88.03666669-AI40 -> 91.06639216 | AJ17: =+-90.3962678490674-AJ40 -> 91.73654292 | AK17: =38.0623140364472-AK40 -> 37.86789074 | AL17: =32.8849414708408-AL40 -> 34.07800691 | AM17: =803.295471804277-AM40 -> 800.894302 | AN17: =+-70.4643826836201-AN40 -> -73.76956215 | AO17: 52.7932806 | AP17: 53.43652703 | AQ17: 109.08
A18: 13
A19: 14 | B19: Income Tax Expense | C19: -193.4215857 | D19: -28.65 | E19: =D19/C19-1 -> -0.8518779593 | H19: Income Tax Expense | I19: -19.63363708 | J19: -5.23457765 | K19: -31.10724313 | L19: -53.66444446 | M19: -18.16355287 | N19: -15.44912082 | O19: -37.89069147 | P19: -28.09989007 | Q19: -20.47552999 | R19: -15.95944562 | S19: -10.37750636 | T19: -20.13833628 | U19: -19.51456001 | V19: -18.40470735 | W19: -24.27169947 | X19: 24.60343599 | Y19: -24.86809562 | Z19: -17.5075655 | AA19: -23.21371285 | AB19: =+-32.56690244-AB42 -> -31.16690244 | AC19: -22.31917969 | AD19: -20.05861646 | AE19: -23.72109895 | AF19: -4.90408714 | AG19: -16.08616397 | AH19: -20.60421935 | AI19: -24.01398945 | AJ19: =27.5181410060612-AJ42 -> -25.43630039 | AK19: =+-79.2784275638755-AK42 -> -74.39695703 | AL19: =+-21.3957580661245-AL42 -> -18.134584 | AM19: =+-202.394526473331-AM42 -> -193.4215857 | AN19: =18.0765510950566-AN42 -> 15.8863171 | AO19: =+-6.38948016242481-AO42 -> -13.82311758 | AP19: -13.464415 | AQ19: -28.65
A20: 15
A21: 16 | B21: Profit (Loss) After Tax | C21: 607.4727163 | D21: 80.4 | E21: -0.8676483769 | H21: Profit (Loss) After Tax | I21: 51.53640125 | J21: 71.57558377 | K21: 18.2043758 | L21: -81.28774381 | M21: 6.96947749 | N21: 50.09956122 | O21: 75.71629908 | P21: 67.6469381 | Q21: 68.19346842 | R21: 52.12708769 | S21: 30.33078337 | T21: 46.66483787 | U21: =+U17+U19 -> 52.73124997 | V21: =+V17+V19 -> 79.44512893 | W21: 70.00171271 | X21: 73.36147896 | Y21: 65.87682531 | Z21: 48.13174156 | AA21: 59.81598143 | AB21: 58.2136466 | AC21: =+AC17+AC19 -> 61.37255555 | AD21: =+AD17+AD19 -> 61.20510816 | AE21: 63.60355169 | AF21: 16.88908419 | AG21: 47.02292554 | AH21: =+AH17+AH19 -> 58.7167491 | AI21: =62.20715213-AI46 -> 64.60573424 | AJ21: =+AJ17+AJ19 -> 66.30024253 | AK21: =+-41.2161135274282-AK44 -> -36.5290663 | AL21: =32.8849414708408-AL44 -> 37.33918098 | AM21: =600.900945330946-AM44 -> 607.4727163 | AN21: =+-52.3878315885635-AN44 -> -57.88324506 | AO21: =55.8799637719585-AO44 -> 38.97016302 | AP21: 40 | AQ21: 80.4
A22: 17
A23: 18 | B23: Profit (Loss) Controller | C23: 604.1523469 | D23: 80.4 | E23: -0.8669209837 | H23: Profit (Loss) Controller | I23: 51.53640125 | J23: 71.57558377 | K23: 18.2043758 | L23: -81.28774381 | M23: 6.96947749 | N23: 50.09956122 | O23: 75.71629908 | P23: 71.02076169 | Q23: 72.19704732 | R23: 51.51331869 | S23: 29.36356422 | T23: 48.35510046 | U23: 56.90250088 | V23: 67.31581931 | W23: 70.13316825 | X23: 76.63340493 | Y23: 65.15757396 | Z23: 46.49696074 | AA23: 56.81723462 | AB23: 71.85072127 | AC23: 64.40332946 | AD23: 61.31662017 | AE23: 59.08722997 | AF23: 18.23869284 | AG23: 43.69979362 | AH23: 54.1301375 | AI23: =64.60573424-AI46 -> 67.00431635 | AJ23: =0.457418776993812-AJ46 -> 66.33838716 | AK23: -38.89237668 | AL23: 35.09246244 | AM23: 604.1523469 | AN23: =+AN21-AN46 -> -60.54720181 | AO23: 47.6260312 | AP23: 40 | AQ23: 80.4
B28: PERÚ | H28: PERÚ
A30: 1 | B30: NON-OPERATING INCOME | C30: 3Q21 | D30: 3Q22 | E30: Var (%) | H30: NON-OPERATING INCOME | I30: 1Q14 | J30: 2Q14 | K30: 3Q14 | L30: 4Q14 | M30: 1Q15 | N30: 2Q15 | O30: 3Q15 | P30: 4Q15 | Q30: 1Q16 | R30: 2Q16 | S30: 3Q16 | T30: 4Q16 | U30: 1Q17 | V30: 2Q17 | W30: 3Q17 | X30: 4Q17 | Y30: 1Q18 | Z30: 2Q18 | AA30: 3Q18 | AB30: 4Q18 | AC30: 1Q19 | AD30: 2Q19 | AE30: 3Q19 | AF30: 4Q19 | AG30: 1Q20 | AH30: 2Q20 | AI30: 3Q20 | AJ30: 4Q20 | AK30: 1Q21 | AL30: 2Q21 | AM30: 3Q21 | AN30: 4Q21 | AO30: 1Q22 | AP30: 2Q22 | AQ30: 3Q22
A31: 2 | B31: US$ million | H31: US$ million
A32: 3
A33: 4 | B33: Financial Income | C33: =+HLOOKUP($C$30,$H$30:$AT$46,A33,FALSE) -> 0.02945771 | D33: =+HLOOKUP($D$30,$H$30:$AT$46,A33,FALSE) -> 0.22 | E33: =+D33/C33-1 -> 6.468333418 | H33: Financial Income | Q33: 0.16734481 | R33: 0.10720838 | S33: 0.13487674 | T33: 0.16597401 | U33: 0.12006236 | V33: 0.15038306 | W33: 0.15893979 | X33: 0.20325471 | Y33: 0.22173542 | Z33: 0.21593708 | AA33: 0.29301841 | AB33: 0.3 | AC33: 0.14140221 | AD33: 0.07243291 | AE33: 0.10292943 | AF33: 0.29090678 | AG33: 0.13774836 | AH33: 0.12062782 | AI33: 0.30203631 | AJ33: 0.15692397 | AK33: 0.05670075 | AL33: 0.05460932 | AM33: 0.02945771 | AN33: 0.04493309 | AO33: 0.08713689 | AP33: -0.2647443 | AQ33: 0.22
A34: 5 | B34: Financial Expenses | C34: =+HLOOKUP($C$30,$H$30:$AT$46,A34,FALSE) -> -6.60410824 | D34: =+HLOOKUP($D$30,$H$30:$AT$46,A34,FALSE) -> -6.28 | E34: =+D34/C34-1 -> -0.04907676074 | H34: Financial Expenses | Q34: -5.42906984 | R34: -2.64302125 | S34: -3.1599593 | T34: -3.42663435 | U34: -3.15247545 | V34: -3.23840606 | W34: -3.73178713 | X34: -4.64763714 | Y34: -4.4800315 | Z34: -4.68735436 | AA34: -4.57870131 | AB34: -4.6 | AC34: -4.59961432 | AD34: -8.88518273 | AE34: -7.03266092 | AF34: -6.61428389 | AG34: -6.84894554 | AH34: -6.60694604 | AI34: -6.94073996 | AJ34: -6.44482884 | AK34: -6.62607137 | AL34: -6.21931376 | AM34: -6.60410824 | AN34: -6.03294417 | AO34: -6.27683585 | AP34: -5.82831713 | AQ34: -6.28
A35: 6 | B35: Exchange rate Differences | C35: =+HLOOKUP($C$30,$H$30:$AT$46,A35,FALSE) -> -1.52892636 | D35: =+HLOOKUP($D$30,$H$30:$AT$46,A35,FALSE) -> -0.52 | E35: -0.6598920565 | H35: Exchange rate Differences | Q35: 1.37017937 | R35: 0.05178628 | S35: -0.63739566 | T35: 0.54193233 | U35: 1.71525323 | V35: -0.15405724 | W35: -0.04914857 | X35: 0.76056468 | Y35: -0.19138833 | Z35: -0.64872458 | AA35: -0.36723388 | AB35: -0.7 | AC35: 0.74991218 | AD35: 0.29622432 | AE35: -1.03815916 | AF35: 0.91169089 | AG35: -1.33876522 | AH35: -1.49486631 | AI35: -0.18466716 | AJ35: -0.18658278 | AK35: -1.01300134 | AL35: -0.36018585 | AM35: -1.52892636 | AN35: 1.24314317 | AO35: 1.18526 | AP35: -0.93457183 | AQ35: -0.52
A36: 7 | B36: Other Profit (Loss) | C36: =+HLOOKUP($C$30,$H$30:$AT$46,A36,FALSE) -> -0.5777162 | D36: =+HLOOKUP($D$30,$H$30:$AT$46,A36,FALSE) -> -1.38 | E36: 1.38871612 | H36: Other Profit (Loss) | Q36: 0.08190361 | R36: -0.66449633 | S36: -0.93240374 | T36: -2.49096733 | U36: -0.09002951 | V36: -0.2753859 | W36: -0.86470301 | X36: 1.29653671 | Y36: -0.01996049 | Z36: -0.42020362 | AA36: -0.77467501 | AB36: -0.3 | AC36: 1.44060929 | AD36: -0.87173263 | AE36: -2.25588267 | AF36: -1.47575647 | AG36: -1.09977165 | AH36: -1.21783327 | AI36: 0.32024836 | AJ36: -180.2395975 | AK36: -0.2058789 | AL36: -0.33867451 | AM36: -0.5777162 | AN36: -1.29439957 | AO36: -1.59591174 | AP36: -2.54244261 | AQ36: -1.38
A37: 8
A38: 9 | B38: Non-Operating Income | C38: =+HLOOKUP($C$30,$H$30:$AT$46,A38,FALSE) -> -8.68129309 | D38: =+HLOOKUP($D$30,$H$30:$AT$46,A38,FALSE) -> -7.96 | E38: -0.08308590466 | H38: Non-Operating Income | Q38: -3.80964205 | R38: -3.14852292 | S38: -4.59488196 | T38: -5.20969534 | U38: -1.40718937 | V38: -3.51746614 | W38: -4.48669892 | X38: -2.38728104 | Y38: =SUM(Y33:Y36) -> -4.4696449 | Z38: =SUM(Z33:Z36) -> -5.54034548 | AA38: =SUM(AA33:AA36) -> -5.42759179 | AB38: =+SUM(AB33:AB36) -> -5.3 | AC38: =+SUM(AC33:AC36) -> -2.26769064 | AD38: =+SUM(AD33:AD36) -> -9.38825813 | AE38: -10.22377332 | AF38: -6.88744269 | AG38: -9.14973405 | AH38: -9.1990178 | AI38: -6.50312245 | AJ38: -186.7140852 | AK38: -7.78825086 | AL38: -6.8635648 | AM38: -8.68129309 | AN38: =+SUM(AN33:AN36) -> -6.03926748 | AO38: =+SUM(AO33:AO36) -> -6.6003507 | AP38: =+SUM(AP33:AP36) -> -9.57007587 | AQ38: -7.96
A39: 10
A40: 11 | B40: Profit (Loss) Before Taxes | C40: =+HLOOKUP($C$30,$H$30:$AT$46,A40,FALSE) -> 2.40116979 | D40: =+HLOOKUP($D$30,$H$30:$AT$46,A40,FALSE) -> 7.9 | E40: 2.290063049 | H40: Profit (Loss) Before Taxes | Q40: 4.92812143 | R40: -1.97600497 | S40: 3.54529886 | T40: 0.89048269 | U40: 1.97106382 | V40: -0.63885456 | W40: 1.16086193 | X40: 7.06207738 | Y40: -2.69829261 | Z40: -1.46433495 | AA40: -6.34838481 | AB40: =+'Operating Income'!D65+AB38 -> 10.56 | AC40: 1.87060968 | AD40: -0.8542845 | AE40: -5.99653221 | AF40: 0.20896998 | AG40: -0.71223131 | AH40: -7.15080925 | AI40: -3.02972547 | AJ40: -182.1328108 | AK40: 0.1944233 | AL40: -1.19306544 | AM40: 2.40116979 | AN40: 3.30517947 | AO40: 9.47616333 | AP40: 3.29664423 | AQ40: 7.9
A41: 12
A42: 13 | B42: Income Tax Expense | C42: =+HLOOKUP($C$30,$H$30:$AT$46,A42,FALSE) -> -8.97294076 | D42: =+HLOOKUP($D$30,$H$30:$AT$46,A42,FALSE) -> -7.66 | E42: =+D42/C42-1 -> -0.1463222365 | H42: Income Tax Expense | Q42: 2.92179456 | R42: 1.28435225 | S42: -5.46042797 | T42: 1.29063535 | U42: 5.81950769 | V42: -0.47814151 | W42: -0.95178186 | X42: -0.88224736 | Y42: 1.22852076 | Z42: -1.90259374 | AA42: 0.41217199 | AB42: -1.4 | AC42: 2.29140546 | AD42: 1.02432743 | AE42: -2.91445359 | AF42: 2.38535693 | AG42: -5.85101862 | AH42: -1.89870266 | AI42: -1.81552511 | AJ42: 52.9544414 | AK42: -4.88147053 | AL42: -3.26117407 | AM42: -8.97294076 | AN42: 2.190234 | AO42: 7.43363742 | AP42: -5.56214987 | AQ42: -7.66
A43: 14
A44: 15 | B44: Profit (Loss) After Tax | C44: =+HLOOKUP($C$30,$H$30:$AT$46,A44,FALSE) -> -6.57177097 | D44: =+HLOOKUP($D$30,$H$30:$AT$46,A44,FALSE) -> 0.24 | E44: - | H44: Profit (Loss) After Tax | Q44: 7.56928576 | R44: -0.4110225 | S44: -1.48737323 | T44: 1.75339817 | U44: 7.79057151 | V44: -1.11699607 | W44: 0.20908007 | X44: 6.17983002 | Y44: -1.46977185 | Z44: -3.36692869 | AA44: -5.93621282 | AB44: =+AB40+AB42 -> 9.16 | AC44: =+AC40+AC42 -> 4.16201514 | AD44: =+AD40+AD42 -> 0.17004293 | AE44: -8.9109858 | AF44: 2.59432691 | AG44: -6.56324993 | AH44: -9.04951191 | AI44: -4.84525058 | AJ44: =+AJ40+AJ42 -> -129.1783694 | AK44: -4.68704723 | AL44: -4.45423951 | AM44: -6.57177097 | AN44: 5.49541347 | AO44: 16.90980075 | AP44: -2.26550564 | AQ44: 0.24
A45: 16
A46: 17 | B46: Profit (Loss) Controller | C46: =+HLOOKUP($C$30,$H$30:$AR$47,A46,FALSE) -> -3.24980319 | D46: =+HLOOKUP($D$30,$H$30:$AT$46,A46,FALSE) -> 0 | H46: Profit (Loss) Controller | Q46: =+Q44*0.51 -> 3.860335738 | R46: =+R44*0.51 -> -0.209621475 | S46: -0.7585603473 | T46: 0.8942330667 | U46: =+U44-U47 -> 4.17125091 | V46: =+V44-V47 -> -12.12930962 | W46: 0.13145554 | X46: 3.27192597 | Y46: -0.71925135 | Z46: -1.63478082 | AA46: -2.99874681 | AB46: 13.66447162 | AC46: 3.03077391 | AD46: 0.11151201 | AE46: -4.51632172 | AF46: 1.34960865 | AG46: =+AG44-AG47 -> -3.32313192 | AH46: =+AH44-AH47 -> -4.5866116 | AI46: -2.39858211 | AJ46: =+AJ44-AJ47 -> -65.88096838 | AK46: -2.32373685 | AL46: =+AL44*0.49 -> -2.18257736 | AM46: -3.24980319 | AN46: 2.66395675 | AO46: 8.25997898 | AP46: =+AP44-AP47 -> -1.13048245 | AQ46: 0
A47: 18 | B47: Profit (Loss) Atributtable to Minority Interest | C47: =+HLOOKUP($C$30,$H$30:$AR$47,A47,FALSE) -> -3.32196778 | D47: =+HLOOKUP($D$30,$H$30:$AR$47,A47,FALSE) -> 0 | H47: Profit (Loss) Atributtable to Minority Interest | Q47: =+Q44*0.49 -> 3.708950022 | R47: =+R44*0.49 -> -0.201401025 | S47: =+S44*0.49 -> -0.7288128827 | T47: =+T44*0.49 -> 0.8591651033 | U47: 3.6193206 | V47: 11.01231355 | W47: 0.07762453 | X47: 2.90790405 | Y47: -0.7505205 | Z47: -1.73214787 | AA47: -2.93746601 | AB47: -4.50447162 | AC47: 1.13124123 | AD47: 0.05853092 | AE47: -4.39466408 | AF47: 1.24471826 | AG47: -3.24011801 | AH47: -4.46290031 | AI47: =+AI44-AI46 -> -2.44666847 | AJ47: =+AJ44*0.49 -> -63.29740099 | AK47: =+AK44-AK46 -> -2.36331038 | AL47: =+AL44*0.51 -> -2.27166215 | AM47: -3.32196778 | AN47: =+AN44-AN46 -> 2.83145672 | AO47: =+AO44-AO46 -> 8.64982177 | AP47: -1.13502319 | AQ47: 0
B49: (*) Regarding Fenix’s Financial Statements, for the second quarter of 2019 the following is worth to mention: (1) As of June 2019, a reclassification of toll’s revenues and costs was made at Fenix subsidiary level in Peru, presenting the net effect of these items. Prior to that date, income and costs were presented separately in the Income Statement. For comparative purposes, the same reclassification was made in the 1Q19’s figures presented in this file. (2)As of June 2019, the gas contract with Calidda, in Peru, began to be recognized as a financial lease, due to the entry into force of IFRS16 accounting regulations. It should be noted that, on that date, the accounting impacts were recorded retroactively for the year 2019. For comparative purposes, the same classification was made in the 1Q19 figures presented in this file. More detail in the Appendix at the end of the Earnings Report

Sheet Balance Sheet
B4: CHILE | H4: CHILE
A6: 1 | B6: BALANCE SHEET (MAIN ACCOUNTS) | C6: 3Q21 | D6: 3Q22 | E6: Var (%) | H6: BALANCE SHEET (MAIN ACCOUNTS) | I6: 1Q17 | J6: 2Q17 | K6: 3Q17 | L6: 4Q17 | M6: 1Q18 | N6: 2Q18 | O6: 3Q18 | P6: 4Q18 | Q6: 1Q19 | R6: 2Q19 | S6: 3Q19 | T6: 4Q19 | U6: 1Q20 | V6: 2Q20 | W6: 3Q20 | X6: 4Q20 | Y6: 1Q21 | Z6: 2Q21 | AA6: 3Q21 | AB6: 4Q21 | AC6: 1Q22 | AD6: 2Q22 | AE6: 3Q22
A7: 2 | B7: US$ million | H7: US$ million
A8: 3
A9: 4 | B9: Current assets | C9: =+HLOOKUP($C$6,$H$6:$AF$18,A9,FALSE) -> 2101.54838 | D9: =+HLOOKUP($D$6,$H$6:$AF$18,A9,FALSE) -> 1469.381296 | E9: =D9/C9-1 -> -0.3008101502 | H9: Current assets | I9: 851.9459851 | J9: 877.8585717 | K9: 966.9844662 | L9: 1036.838809 | M9: 1123.016143 | N9: 906.1041633 | O9: 1018.895671 | P9: =1151.26274554-P28 -> 1079.426855 | Q9: =1215.75743257-Q28 -> 1149.022804 | R9: 962.2979467 | S9: =1117.13582647-S28 -> 1056.557172 | T9: 1069.044403 | U9: =1313.33960533-U28 -> 1239.534453 | V9: =1157.13281828-V28 -> 1065.856571 | W9: =1232.11201038-W28 -> 1153.926594 | X9: =1259.18534985546-X28 -> 1184.683749 | Y9: =1835.53080955605-Y28 -> 1771.137438 | Z9: =1606.13921990478-Z28 -> 1529.610643 | AA9: =2162.29712954196-AA28 -> 2101.54838 | AB9: =1766.43577610322-AB28 -> 1701.09212 | AC9: 1531.33 | AD9: 1451.783943 | AE9: 1469.381296
A10: 5 | B10: Non-current assets | C10: =+HLOOKUP($C$6,$H$6:$AF$18,A10,FALSE) -> 4336.998566 | D10: =+HLOOKUP($D$6,$H$6:$AF$18,A10,FALSE) -> 4249.26503 | E10: =D10/C10-1 -> -0.0202290903 | H10: Non-current assets | I10: 5111.970001 | J10: 5118.241999 | K10: 5083.057523 | L10: 5039.001555 | M10: 5033.184689 | N10: 5004.298658 | O10: 4986.249168 | P10: =5627.08594679-P29 -> 4914.950267 | Q10: =5634.71460311-Q29 -> 4900.352608 | R10: 4856.191968 | S10: =5662.96485819-S29 -> 4816.502754 | T10: 4715.058207 | U10: =5548.1223242-U29 -> 4691.608379 | V10: =5545.52978856-V29 -> 4703.896306 | W10: =5499.52641136-W29 -> 4689.193846 | X10: =5374.69484166304-X29 -> 4692.081113 | Y10: =4858.214-Y29 -> 4188.585502 | Z10: =4861.638-Z29 -> 4202.123825 | AA10: =4981.939-AA29 -> 4336.998566 | AB10: =4836.072-AB29 -> 4196.721197 | AC10: 4108.02 | AD10: 4220.968702 | AE10: 4249.26503
A11: 6 | C11: 0 | D11: 0
A12: 7 | B12: TOTAL ASSETS | C12: 6438.546946 | D12: 5718.646326 | E12: =D12/C12-1 -> -0.1118110383 | H12: TOTAL ASSETS | I12: =I10+I9 -> 5963.915986 | J12: =J10+J9 -> 5996.100571 | K12: =K10+K9 -> 6050.041989 | L12: 6075.840364 | M12: 6156.200832 | N12: =N10+N9 -> 5910.402821 | O12: 6005.144839 | P12: =P10+P9 -> 5994.377123 | Q12: 6049.375412 | R12: 5818.489914 | S12: 5873.059926 | T12: 5784.10261 | U12: 5931.142832 | V12: 5769.752877 | W12: 5843.12044 | X12: 5876.764862 | Y12: 5959.72294 | Z12: 5731.734468 | AA12: 6438.546946 | AB12: =AB10+AB9 -> 5897.813317 | AC12: =AC10+AC9 -> 5639.35 | AD12: =AD10+AD9 -> 5672.752644 | AE12: =AE10+AE9 -> 5718.646326
A13: 8
A14: 9 | B14: Current liabilities | C14: 479.1984429 | D14: 297.0944657 | E14: =D14/C14-1 -> -0.3800178818 | H14: Current liabilities | I14: 332.062935 | J14: 257.5724235 | K14: 251.1832416 | L14: 321.5941293 | M14: 311.4043415 | N14: 240.919936 | O14: 238.144555 | P14: =345.36432029-P33 -> 301.9026254 | Q14: =324.73546798-Q33 -> 278.5907079 | R14: 217.377272 | S14: =286.59953942-S33 -> 226.6539619 | T14: 267.9885452 | U14: =344.78575294-U33 -> 245.2432217 | V14: =300.0780978-V33 -> 187.2801528 | W14: =285.30081097-W33 -> 193.4250336 | X14: =306.542637480564-X33 -> 215.4011808 | Y14: =429.657122-Y33 -> 341.7366779 | Z14: =427.219-Z33 -> 331.302025 | AA14: =571.603-AA33 -> 479.1984429 | AB14: =679.004-AB33 -> 592.8299143 | AC14: 297.52 | AD14: 336.2 | AE14: 297.0944657
A15: 10 | B15: Non-current liabilities | C15: 2275.943743 | D15: 2735.207039 | E15: =D15/C15-1 -> 0.2017902669 | H15: Non-current liabilities | I15: 2298.029043 | J15: 2289.019344 | K15: 2303.73617 | L15: 2262.981045 | M15: 2276.374862 | N15: 2240.46498 | O15: 2281.996422 | P15: =2576.04691683-P34 -> 2242.757819 | Q15: =2601.2611478-Q34 -> 2257.692077 | R15: 2247.113067 | S15: =2674.75084135-S34 -> 2230.297509 | T15: 2185.748223 | U15: =2749.60490735-U34 -> 2317.501268 | V15: =2740.20253576-V34 -> 2309.714166 | W15: =2720.09146833-W34 -> 2308.227428 | X15: =2741.98145781361-X34 -> 2331.507302 | Y15: =2717.96-Y34 -> 2322.76 | Z15: =2705.976-Z34 -> 2312.376 | AA15: =2649.348-AA34 -> 2275.943743 | AB15: =3082.078-AB34 -> 2708.917805 | AC15: 2726.27 | AD15: 2724.78 | AE15: 2735.207039
A16: 11 | B16: Total equity | C16: 3683.44012 | D16: 2686.344845 | E16: =D16/C16-1 -> -0.2706967517 | H16: Total equity | I16: 3333.138676 | J16: 3449.508804 | K16: 3495.122578 | L16: 3491.26519 | M16: 3568.421629 | N16: 3429.017905 | O16: 3485.003862 | P16: =3856.93745521-P35 -> 3449.716678 | Q16: =3924.4754199-Q35 -> 3513.092628 | R16: 3354.009295 | S16: =3818.75030389-S35 -> 3416.108454 | T16: 3330.399013 | U16: =3767.1044403-U35 -> 3368.431514 | V16: =3662.38197328-V35 -> 3272.758559 | W16: =3726.24614244-W35 -> 3341.467978 | X16: =3585.36746942-X35 -> 3329.867675 | Y16: =3546.10960949-Y35 -> 3295.196862 | Z16: =3334.495-Z35 -> 3088.036492 | AA16: =3923.286-AA35 -> 3683.44012 | AB16: =2841.426-AB35 -> 2596.040743 | AC16: 2615.65 | AD16: 2611.78 | AE16: 2686.344845
A17: 12 | C17: 0 | D17: 0
A18: 13 | B18: TOTAL LIABILITIES AND NET EQUITY | C18: 6438.582307 | D18: 5718.646349 | E18: =D18/C18-1 -> -0.1118159127 | H18: TOTAL LIABILITIES AND NET EQUITY | I18: =SUM(I14:I16) -> 5963.230654 | J18: =SUM(J14:J16) -> 5996.100571 | K18: =SUM(K14:K16) -> 6050.041989 | L18: =SUM(L14:L16) -> 6075.840364 | M18: 6156.200832 | N18: 5910.402821 | O18: =SUM(O14:O16) -> 6005.144839 | P18: 5994.377123 | Q18: 6049.375412 | R18: 5818.499634 | S18: =SUM(S14:S16) -> 5873.059926 | T18: 5784.135781 | U18: 5931.176003 | V18: 5769.752877 | W18: 5843.12044 | X18: 5876.776158 | Y18: 5959.69354 | Z18: =SUM(Z14:Z16) -> 5731.714517 | AA18: =SUM(AA14:AA16) -> 6438.582307 | AB18: =SUM(AB14:AB16) -> 5897.788463 | AC18: =SUM(AC14:AC16) -> 5639.44 | AD18: =SUM(AD14:AD16) -> 5672.76 | AE18: =+AE14+AE15+AE16 -> 5718.646349
B23: PERÚ | H23: PERÚ
A25: 1 | B25: BALANCE SHEET (MAIN ACCOUNTS) | C25: 3Q21 | D25: 3Q22 | E25: Var (%) | H25: BALANCE SHEET (MAIN ACCOUNTS) | I25: 1Q17 | J25: 2Q17 | K25: 3Q17 | L25: 4Q17 | M25: 1Q18 | N25: 2Q18 | O25: 3Q18 | P25: 4Q18 | Q25: 1Q19 | R25: 2Q19 | S25: 3Q19 | T25: 4Q19 | U25: 1Q20 | V25: 2Q20 | W25: 3Q20 | X25: 4Q20 | Y25: 1Q21 | Z25: 2Q21 | AA25: 3Q21 | AB25: 4Q21 | AC25: 1Q22 | AD25: 2Q22 | AE25: 3Q22
A26: 2 | B26: US$ million | H26: US$ million
A27: 3
A28: 4 | B28: Current assets | C28: =+HLOOKUP($C$25,$H$25:$AE$37,A28,FALSE) -> 60.74874987 | D28: =+HLOOKUP($D$25,$H$25:$BC$37,A28,FALSE) -> 66.64226537 | E28: =D28/C28-1 -> 0.09701459721 | H28: Current assets | I28: 99.084345 | J28: 101.6169694 | K28: 103.7170596 | L28: 110.3235526 | M28: 97.45142791 | N28: 104.4975968 | O28: 97.6784911 | P28: 71.83589023 | Q28: 66.73462822 | R28: 67.59402469 | S28: 60.57865474 | T28: 70.36592011 | U28: 73.8051525 | V28: 91.27624743 | W28: 78.18541668 | X28: 74.50160104 | Y28: 64.39337131 | Z28: 76.5285766 | AA28: 60.74874987 | AB28: 65.34365598 | AC28: 65.58616404 | AD28: 77.47732876 | AE28: 66.64226537
A29: 5 | B29: Non-current assets | C29: 644.940434 | D29: =+HLOOKUP($D$25,$H$25:$BE$37,A29,FALSE) -> 620.6539696 | E29: =D29/C29-1 -> -0.0376569108 | H29: Non-current assets | I29: 734.8510073 | J29: 728.0586741 | K29: 743.077651 | L29: 736.377883 | M29: 732.4612726 | N29: 723.5203992 | O29: 716.7361853 | P29: 712.1356796 | Q29: 734.3619952 | R29: 861.9798881 | S29: 846.4621043 | T29: 850.8481506 | U29: 856.5139449 | V29: 841.6334823 | W29: 810.3325649 | X29: 682.6137283 | Y29: 669.628498 | Z29: 659.5141753 | AA29: 644.940434 | AB29: 639.3508031 | AC29: 644.2424815 | AD29: 634.6012982 | AE29: 620.6539696
A30: 6 | C30: 0
A31: 7 | B31: TOTAL ASSETS | C31: 705.6891838 | D31: =+HLOOKUP($D$25,$H$25:$AQ$37,A31,FALSE) -> 687.2962349 | E31: =D31/C31-1 -> -0.02606381013 | H31: TOTAL ASSETS | I31: =I29+I28 -> 833.9353523 | J31: =J29+J28 -> 829.6756434 | K31: 846.7947106 | L31: =L29+L28 -> 846.7014356 | M31: 829.9127005 | N31: 828.0179959 | O31: =O29+O28 -> 814.4146764 | P31: =+P28+P29 -> 783.9715698 | Q31: 801.0966234 | R31: 929.5739128 | S31: 907.0407591 | T31: 921.2140707 | U31: 930.3190974 | V31: 932.9097298 | W31: 888.5179816 | X31: 757.1153294 | Y31: 734.0218693 | Z31: 736.0427519 | AA31: 705.6891838 | AB31: =+AB28+AB29 -> 704.6944591 | AC31: =+AC28+AC29 -> 709.8286455 | AD31: =+AD28+AD29 -> 712.078627 | AE31: =+AE28+AE29 -> 687.2962349
A32: 8 | C32: 0
A33: 9 | B33: Current liabilities | C33: 92.40455707 | D33: =+HLOOKUP($D$25,$H$25:$AO$36,A33,FALSE) -> 93.49229621 | E33: =D33/C33-1 -> 0.01177148806 | H33: Current liabilities | I33: 22.33648501 | J33: 20.85197148 | K33: 28.26018797 | L33: 33.20792836 | M33: 34.0731783 | N33: 35.73189277 | O33: 42.52726863 | P33: 43.46169486 | Q33: 46.14476006 | R33: 53.07440095 | S33: 59.94557756 | T33: 70.34982837 | U33: 99.54253127 | V33: 112.797945 | W33: 91.87577734 | X33: 91.14145665 | Y33: 87.92044411 | Z33: 95.91697504 | AA33: 92.40455707 | AB33: 86.17408567 | AC33: 90.87189553 | AD33: 97.62467628 | AE33: 93.49229621
A34: 10 | B34: Non-current liabilities | C34: 373.4042567 | D34: =+HLOOKUP($D$25,$H$25:$AN$37,A34,FALSE) -> 333.5693906 | E34: =D34/C34-1 -> -0.1066802678 | H34: Non-current liabilities | I34: 374.892431 | J34: 373.3911707 | K34: 358.591065 | L34: 354.0520465 | M34: 347.8678334 | N34: 347.681343 | O34: 333.2188604 | P34: 333.2890977 | Q34: 343.5690711 | R34: 464.9466766 | S34: 444.4533321 | T34: 445.628066 | U34: 432.1036397 | V34: 430.4883702 | W34: 411.8640403 | X34: 410.4741559 | Y34: 395.2 | Z34: 393.6 | AA34: 373.4042567 | AB34: 373.1601948 | AC34: 356.7270166 | AD34: 354.4652391 | AE34: 333.5693906
A35: 11 | B35: Total net equity | C35: 239.8458797 | D35: =+HLOOKUP($D$25,$H$25:$AV$37,A35,FALSE) -> 260.2345482 | E35: 0.08500737437 | H35: Total net equity | I35: 436.7064363 | J35: 435.4325012 | K35: 459.9434577 | L35: 459.4414607 | M35: 447.9716888 | N35: 444.6047602 | O35: 438.6685473 | P35: 407.2207772 | Q35: 411.3827923 | R35: 411.5528352 | S35: 402.6418494 | T35: 405.2361764 | U35: 398.6729264 | V35: 389.6234145 | W35: 384.7781639 | X35: 255.4997946 | Y35: 250.9127473 | Z35: 246.4585078 | AA35: 239.8458797 | AB35: 245.385257 | AC35: 262.2268415 | AD35: 259.9887116 | AE35: 260.2345482
A36: 12
A37: 13 | B37: TOTAL LIABILITIES AND NET EQUITY | C37: =+HLOOKUP($C$25,$H$25:$AE$37,A37,FALSE) -> 705.6546934 | D37: =+HLOOKUP($D$25,$H$25:$AL$37,A37,FALSE) -> 687.296235 | E37: =D37/C37-1 -> -0.02601620686 | H37: TOTAL LIABILITIES AND NET EQUITY | I37: =SUM(I33:I35) -> 833.9353523 | J37: =SUM(J33:J35) -> 829.6756434 | K37: 846.7947106 | L37: =SUM(L33:L35) -> 846.7014356 | M37: 829.9127005 | N37: 828.0179959 | O37: =SUM(O33:O35) -> 814.4146764 | P37: 783.9715698 | Q37: 801.0966234 | R37: 929.5739128 | S37: 907.0407591 | T37: =SUM(T33:T35) -> 921.2140707 | U37: 930.3190974 | V37: =SUM(V33:V35) -> 932.9097298 | W37: =SUM(W33:W35) -> 888.5179816 | X37: =SUM(X33:X35) -> 757.1154071 | Y37: =SUM(Y33:Y35) -> 734.0331915 | Z37: =SUM(Z33:Z35) -> 735.9754829 | AA37: 705.6546934 | AB37: 704.7195374 | AC37: 709.8257536 | AD37: 712.078627 | AE37: 687.296235

Sheet Main Debt Items
A4: CHILE | G4: CHILE
A6: MAIN DEBT ITEMS | B6: 3Q21 | C6: 3Q22 | D6: Var (%) | F6: 1 | G6: MAIN DEBT ITEMS | H6: 1Q14 | I6: 2Q14 | J6: 3Q14 | K6: 4Q14 | L6: 1Q15 | M6: 2Q15 | N6: 3Q15 | O6: 4Q15 | P6: 1Q16 | Q6: 2Q16 | R6: 3Q16 | S6: 4Q16 | T6: 1Q17 | U6: 2Q17 | V6: 3Q17 | W6: 4Q17 | X6: 1Q18 | Y6: 2Q18 | Z6: 3Q18 | AA6: 4Q18 | AB6: 1Q19 | AC6: 2Q19 | AD6: 3Q19 | AE6: 4Q19 | AF6: 1Q20 | AG6: 2Q20 | AH6: 3Q20 | AI6: 4Q20 | AJ6: 1Q21 | AK6: 2Q21 | AL6: 3Q21 | AM6: 4Q21 | AN6: 1Q22 | AO6: 2Q22 | AP6: 3Q22
A7: US$ million | F7: 2 | G7: US$ million
F8: 3
A9: Gross Financial Debt | B9: =+HLOOKUP($B$6,$G$6:$AR$13,F9,FALSE) -> 1322.488823 | C9: =+HLOOKUP($C$6,$G$6:$AR$13,F9,FALSE) -> 1717.45 | D9: =C9/B9-1 -> 0.2986499165 | F9: 4 | G9: Gross Financial Debt* | H9: 1621.21 | I9: 1618.244 | J9: 2045.051 | K9: 1893.891 | L9: 1887.99 | M9: 1877 | N9: 1870.702614 | O9: 1857.943947 | P9: 1865.782617 | Q9: 1626.889576 | R9: 1361.930507 | S9: 1347.148136 | T9: 1342.667875 | U9: 1341.229 | V9: 1344.954746 | W9: 1305.427873 | X9: 1318.120041 | Y9: 1280.816909 | Z9: 1287.716089 | AA9: =1603.2633381-AA23 -> 1254.177055 | AB9: =1612.00621806-AB23 -> 1272.09728 | AC9: 1255.636615 | AD9: =1701.04231517-AD23 -> 1243.882484 | AE9: 1219.401066 | AF9: =1814.75025218-AF23 -> 1347.574955 | AG9: =1806.42016527-AG23 -> 1334.08591 | AH9: =1796.72138678-AH23 -> 1338.175246 | AI9: =1796.2731062684-AI23 -> 1336.722426 | AJ9: =1781.18954300951-AJ23 -> 1337.789543 | AK9: =1765.65650261125-AK23 -> 1320.756503 | AL9: =1750.75484374691-AL23 -> 1322.488823 | AM9: =2310.45229578-AM23 -> 1880.875102 | AN9: =+'[2]01.BALANCE'!$R$3+'[2]01.BALANCE'!$R$11 -> 1717.81 | AO9: 1726.84737 | AP9: 1717.45
A10: Financial Investments | B10: =+HLOOKUP($B$6,$G$6:$AR$13,F10,FALSE) -> 1864.821229 | C10: =+HLOOKUP($C$6,$G$6:$AR$13,F10,FALSE) -> 1150.7 | D10: =C10/B10-1 -> -0.3829435326 | F10: 5 | G10: Financial Investments | H10: 208.3 | I10: 337.4 | J10: 878.3 | K10: 832.76 | L10: 816.7 | M10: 912.5 | N10: 1090.572067 | O10: 1058.002837 | P10: 1041.942792 | Q10: 821.8959279 | R10: 577.4523795 | S10: 644.9653821 | T10: 625.2035048 | U10: 642.6490805 | V10: 732.5831815 | W10: 757.3468177 | X10: 840.1824456 | Y10: 643.1931495 | Z10: 738.2003521 | AA10: =788.08749668-AA24 -> 764.3838911 | AB10: =815.72624595-AB24 -> 802.7014559 | AC10: 649.8331993 | AD10: =780.16379925-AD24 -> 766.8131977 | AE10: 773.548078 | AF10: =979.68716846-AF24 -> 951.0123116 | AG10: =854.02097505-AG24 -> 813.0143463 | AH10: =965.89374418-AH24 -> 938.5050004 | AI10: =967.40052647-AI24 -> 938.5596436 | AJ10: =1027.83522607416-AJ24 -> 1005.991534 | AK10: =789.998535169543-AK24 -> 756.8934766 | AL10: =1886.10239526024-AL24 -> 1864.821229 | AM10: =1419.22163411-AM24 -> 1391.353021 | AN10: =+'[2]01.BALANCE'!$O$3 -> 1175.09 | AO10: 950.6654373 | AP10: 1150.7
A11: Net Debt | B11: -542.332406 | C11: 566.75 | D11: - | F11: 6 | G11: Net Debt | H11: =H9-H10 -> 1412.91 | I11: =I9-I10 -> 1280.844 | J11: 1166.751 | K11: 1061.131 | L11: 1071.29 | M11: 964.5 | N11: 780.1305467 | O11: 799.9411095 | P11: 823.8398246 | Q11: =Q9-Q10 -> 804.9936479 | R11: =R9-R10 -> 784.4781272 | S11: =S9-S10 -> 702.1827538 | T11: =T9-T10 -> 717.4643705 | U11: =U9-U10 -> 698.5799193 | V11: =V9-V10 -> 612.3715643 | W11: 548.0810558 | X11: 477.9375959 | Y11: =Y9-Y10 -> 637.6237593 | Z11: 549.5157367 | AA11: =+AA9-AA10 -> 489.7931642 | AB11: =796.27997211-AB25 -> 469.3958241 | AC11: 605.8034154 | AD11: =+AD9-AD10 -> 477.0692867 | AE11: 445.8529882 | AF11: 396.5626434 | AG11: 521.0715633 | AH11: 399.6702454 | AI11: =+AI9-AI10 -> 398.1627823 | AJ11: =+AJ9-AJ10 -> 331.7980086 | AK11: =975.657967441702-AK25 -> 563.863026 | AL11: =+AL9-AL10 -> -542.332406 | AM11: =+AM9-AM10 -> 489.5220808 | AN11: =+AN9-AN10 -> 542.72 | AO11: =+AO9-AO10 -> 776.1819322 | AP11: =+AP9-AP10 -> 566.75
A12: EBITDA LTM | B12: 468.3468901 | C12: =+HLOOKUP($C$6,$G$6:$AR$13,F12,FALSE) -> 578.1376239 | D12: 0.2344218273 | F12: 7 | G12: EBITDA LTM | H12: 382.9214563 | I12: 393.3091542 | J12: 484.3540757 | K12: =SUM('Operating Income'!I33:L33) -> 536.55661 | L12: =SUM('Operating Income'!J33:M33) -> 509.5818134 | M12: =SUM('Operating Income'!K33:N33) -> 505.1181005 | N12: =SUM('Operating Income'!L33:O33) -> 569.0368969 | O12: =SUM('Operating Income'!M33:P33) -> 582.1343626 | P12: =SUM('Operating Income'!N33:Q33) -> 642.8623061 | Q12: =SUM('Operating Income'!O33:R33) -> 648.4863516 | R12: =SUM('Operating Income'!P33:S33) -> 574.0483696 | S12: =SUM('Operating Income'!Q33:T33) -> 545.7120511 | T12: =SUM('Operating Income'!R33:U33) -> 535.5939083 | U12: =SUM('Operating Income'!S33:V33) -> 541.1686765 | V12: =SUM('Operating Income'!T33:W33) -> 595.2712614 | W12: =SUM('Operating Income'!U33:X33) -> 638.5442191 | X12: =SUM('Operating Income'!V33:Y33) -> 648.8124618 | Y12: =SUM('Operating Income'!W33:Z33) -> 642.9267541 | Z12: =SUM('Operating Income'!X33:AA33) -> 631.3539162 | AA12: =SUM('Operating Income'!Y33:AB33) -> 647.7782707 | AB12: =SUM('Operating Income'!Z33:AC33) -> 643.0215569 | AC12: =SUM('Operating Income'!AA33:AD33) -> 656.6383782 | AD12: =SUM('Operating Income'!AB33:AE33) -> 670.3905676 | AE12: =SUM('Operating Income'!AC33:AF33) -> 630.8749259 | AF12: =SUM('Operating Income'!AD33:AG33) -> 634.7410311 | AG12: =SUM('Operating Income'!AE33:AH33) -> 621.1825027 | AH12: =SUM('Operating Income'!AF33:AI33) -> 617.7780701 | AI12: =682.539488147868-AI26 -> 617.4269412 | AJ12: =+SUM('Operating Income'!AH33:AK33) -> 585.1565444 | AK12: =639.022682110036-AK26 -> 575.7042025 | AL12: =535.871740508092-AL26 -> 468.3468901 | AM12: =520.197108828493-AM26 -> 450.6693767 | AN12: =+SUM('Operating Income'!AL33:AO33) -> 433.744816 | AO12: 449.7664677 | AP12: 578.1376239
A13: Net Debt/EBITDA LTM (x) | B13: - | C13: 0.9803029185 | D13: - | F13: 8 | G13: Net Debt/EBITDA LTM (x) | H13: =H11/H12 -> 3.689816741 | I13: =I11/I12 -> 3.256583241 | J13: 2.408880318 | K13: 1.977668302 | L13: 2.102292452 | M13: 1.909454441 | N13: 1.370966542 | O13: 1.374152019 | P13: 1.281518323 | Q13: 1.241342468 | R13: 1.366571475 | S13: 1.286727593 | T13: 1.339567832 | U13: 1.29087279 | V13: 1.028726908 | W13: =W11/W12 -> 0.8583290544 | X13: 0.7366344267 | Y13: =Y11/Y12 -> 0.9917517901 | Z13: 0.8703766978 | AA13: =+AA11/AA12 -> 0.7561123711 | AB13: 0.7299845846 | AC13: 0.9225830159 | AD13: 0.7116288769 | AE13: 0.7067216812 | AF13: 0.6247628938 | AG13: 0.6285617109 | AH13: =+AH11/AH12 -> 0.6469479329 | AI13: =+AI11/AI12 -> 0.6448743256 | AJ13: =+AJ11/AJ12 -> 0.567024349 | AK13: =+AK11/AK12 -> 0.9794318393 | AL13: - | AM13: =+AM11/AM12 -> 1.086211103 | AN13: =+AN11/AN12 -> 1.25124262 | AO13: =+AO11/AO12 -> 1.725744332 | AP13: =+AP11/AP12 -> 0.9803029185
A18: PERÚ | G18: PERÚ
A20: MAIN DEBT ITEMS | B20: 3Q21 | C20: 3Q22 | D20: Var (%) | F20: 1 | G20: MAIN DEBT ITEMS | H20: 1Q14 | I20: 2Q14 | J20: 3Q14 | K20: 4Q14 | L20: 1Q15 | M20: 2Q15 | N20: 3Q15 | O20: 4Q15 | P20: 1Q16 | Q20: 2Q16 | R20: 3Q16 | S20: 4Q16 | T20: 1Q17 | U20: 2Q17 | V20: 3Q17 | W20: 4Q17 | X20: 1Q18 | Y20: 2Q18 | Z20: 3Q18 | AA20: 4Q18 | AB20: 1Q19 | AC20: 2Q19 | AD20: 3Q19 | AE20: 4Q19 | AF20: 1Q20 | AG20: 2Q20 | AH20: 3Q20 | AI20: 4Q20 | AJ20: 1Q21 | AK20: 2Q21 | AL20: 3Q21 | AM20: 4Q21 | AN20: 1Q22 | AO20: 2Q22 | AP20: 3Q22
A21: US$ million | F21: 2 | G21: US$ million
F22: 3
A23: Gross Financial Debt | B23: =+HLOOKUP($B$20,$G$20:$AR$27,F23,FALSE) -> 428.2660204 | C23: =+HLOOKUP($C$20,$G$20:$AQ$27,F23,FALSE) -> 394.4446088 | D23: =C23/B23-1 -> -0.07897290466 | F23: 4 | G23: Gross Financial Debt* | P23: 378.2411209 | Q23: 383.0336171 | R23: 378.5329561 | S23: 362.8838333 | T23: 360.7762475 | U23: 361.3613025 | V23: 350.5778908 | W23: 354.0245499 | X23: 350.327169 | Y23: 354.0502714 | Z23: 345.4253328 | AA23: 349.0862828 | AB23: 339.908938 | AC23: 468.8407102 | AD23: 457.1598308 | AE23: 459.2619187 | AF23: 467.1752972 | AG23: 472.3342556 | AH23: 458.5461409 | AI23: =+'[3]Carp Dir'!$I$4+'[3]Carp Dir'!$I$12 -> 459.5506804 | AJ23: 443.4 | AK23: 444.9 | AL23: 428.2660204 | AM23: 429.5771936 | AN23: =+'[2]01.BALANCE'!$S$3+'[2]01.BALANCE'!$S$11 -> 411.361039 | AO23: 412.4560551 | AP23: 394.4446088
A24: Financial Investments | B24: =+HLOOKUP($B$20,$G$20:$AR$27,F24,FALSE) -> 21.28116595 | C24: =+HLOOKUP($C$20,$G$20:$AQ$27,F24,FALSE) -> 25.20053387 | D24: =C24/B24-1 -> 0.1841707324 | F24: 5 | G24: Financial Investments | P24: 20.63219316 | Q24: 26.78067571 | R24: 42.75403962 | S24: 22.03164161 | T24: 38.97937914 | U24: 37.81856395 | V24: 43.2335647 | W24: 52.86830227 | X24: 40.55792069 | Y24: 52.41524867 | Z24: 46.43714888 | AA24: 23.70360555 | AB24: 13.02479002 | AC24: 17.4935957 | AD24: 13.3506016 | AE24: 23.76704196 | AF24: 28.67485688 | AG24: 41.00662872 | AH24: 27.38874377 | AI24: =+'[3]Carp Dir'!$D$4 -> 28.84088288 | AJ24: 21.84369167 | AK24: 33.10505853 | AL24: 21.28116595 | AM24: 27.86861269 | AN24: =+'[2]01.BALANCE'!$R$3 -> 21.9 | AO24: 39.15507129 | AP24: 25.20053387
A25: Net Debt | B25: 406.9848545 | C25: 369.2440749 | D25: -0.09273263883 | F25: 6 | G25: Net Debt | P25: =P23-P24 -> 357.6089278 | Q25: =Q23-Q24 -> 356.2529414 | R25: 335.7789165 | S25: 340.8521917 | T25: 321.7968683 | U25: =U23-U24 -> 323.5427385 | V25: 307.3443261 | W25: =W23-W24 -> 301.1562477 | X25: 309.7692483 | Y25: =Y23-Y24 -> 301.6350227 | Z25: 298.9881839 | AA25: 325.3826772 | AB25: =+AB23-AB24 -> 326.884148 | AC25: 451.3471145 | AD25: 443.8092292 | AE25: 435.4948767 | AF25: 438.5004403 | AG25: 431.3276269 | AH25: 431.1573972 | AI25: =+AI23-AI24 -> 430.7097975 | AJ25: 421.5563083 | AK25: 411.7949415 | AL25: 406.9848545 | AM25: 401.7085809 | AN25: 389.461039 | AO25: 373.3009838 | AP25: 369.2440749
A26: EBITDA LTM | B26: 67.5248504 | C26: 89.66732525 | D26: 0.3279159409 | F26: 7 | G26: EBITDA LTM | P26: 52.49635925 | Q26: 43.23619424 | R26: 46.36359415 | S26: =SUM('Operating Income'!Q67:T67) -> 56.03891626 | T26: =SUM('Operating Income'!R67:U67) -> 50.73002218 | U26: =SUM('Operating Income'!S67:V67) -> 52.52030913 | V26: =SUM('Operating Income'!T67:W67) -> 49.89764908 | W26: =SUM('Operating Income'!U67:X67) -> 53.58573065 | X26: =SUM('Operating Income'!V67:Y67) -> 52.09403241 | Y26: =SUM('Operating Income'!W67:Z67) -> 53.50367275 | Z26: =SUM('Operating Income'!X67:AA67) -> 47.39206898 | AA26: 35.73956707 | AB26: =+SUM('Operating Income'!Z67:AC67) -> 42.8808478 | AC26: =+SUM('Operating Income'!AA67:AD67) -> 49.03174176 | AD26: =+SUM('Operating Income'!AB67:AE67) -> 57.66294297 | AE26: =SUM('Operating Income'!AC67:AF67) -> 69.93008657 | AF26: 76.86363658 | AG26: =+SUM('Operating Income'!AE67:AH67) -> 68.08928395 | AH26: =+SUM('Operating Income'!AF67:AI67) -> 67.75640421 | AI26: 65.11254698 | AJ26: 62.38658003 | AK26: =+SUM('Operating Income'!AI66:AL67) -> 63.31847958 | AL26: 67.5248504 | AM26: 69.52773216 | AN26: =+SUM('Operating Income'!AL67:AO67) -> 77.49567869 | AO26: =+SUM('Operating Income'!AM67:AP67) -> 84.79005854 | AP26: 89.66732525
A27: Net Debt/EBITDA LTM (x) | B27: 6.027186318 | C27: 4.117933416 | D27: -0.3167734995 | F27: 8 | G27: Net Debt/EBITDA LTM (x) | P27: =P25/P26 -> 6.812071025 | Q27: =Q25/Q26 -> 8.239692407 | R27: =R25/R26 -> 7.242296949 | S27: =S25/S26 -> 6.082419405 | T27: 6.34332205 | U27: 6.160335761 | V27: 6.159495122 | W27: =W25/W26 -> 5.620082884 | X27: 5.946348056 | Y27: =Y25/Y26 -> 5.637650786 | Z27: =Z25/Z26 -> 6.308823192 | AA27: =AA25/AA26 -> 9.104270251 | AB27: =+AB25/AB26 -> 7.623080344 | AC27: 9.205202554 | AD27: 7.696610793 | AE27: 6.227575255 | AF27: 5.704914051 | AG27: 6.334735833 | AH27: 6.363345313 | AI27: =+AI25/AI26 -> 6.614851015 | AJ27: 6.757163289 | AK27: 6.503550689 | AL27: 6.027186318 | AM27: 5.777674151 | AN27: 5.025583949 | AO27: =+AO25/AO26 -> 4.402650384 | AP27: =+AP25/AP26 -> 4.117933416
G29: * Includes capitalised expenses.
A31: (*) The account “Financial Investments” presented includes the amount associated to time deposits that, by having an investment term of more than 90 days, are recorded as “Other Current Financial Assets” in the Financial Statements.

Sheet Amortization Profile
A4: CHILE
A6: AMORTIZATION PROFILE (*) | B6: 2018 | C6: 2021 | D6: 2022 | E6: 2023 | F6: 2024 | G6: 2025 | H6: 2026 | I6: 2027 | J6: 2028 | K6: 2029 | L6: 2030 | M6: 2031 | N6: 2032
A7: US$ million
A9: Colbun | B9: 0 | F9: 157 | G9: 0 | H9: 0 | I9: 500 | J9: 0 | K9: 0 | L9: 500 | M9: 0 | N9: 600
A14: PERÚ
A16: AMORTIZATION PROFILE (*) | B16: 2018 | C16: 2021 | D16: 2022 | E16: 2023 | F16: 2024 | G16: 2025 | H16: 2026 | I16: 2027 | J16: 2028 | K16: 2029 | L16: 2030
A17: US$ million
A19: Fenix | B19: 0 | D19: 0 | E19: 28 | F19: 24 | G19: 16 | H19: 18 | I19: 168 | J19: 0 | K19: 0 | L19: 0
A22: (*) Leasings, accrued interests and activated expenses are not included.

Sheet Cash Flow
B4: CHILE | H4: CHILE
A6: 1 | B6: CASH FLOW | C6: 3Q21 | D6: 3Q22 | E6: Var (%) | H6: CASH FLOW | I6: 1Q14 | J6: 2Q14 | K6: 3Q14 | L6: 4Q14 | M6: 1Q15 | N6: 2Q15 | O6: 3Q15 | P6: 4Q15 | Q6: 1Q16 | R6: 2Q16 | S6: 3Q16 | T6: 4Q16 | U6: 1Q17 | V6: 2Q17 | W6: 3Q17 | X6: 4Q17 | Y6: 1Q18 | Z6: 2Q18 | AA6: 3Q18 | AB6: 4Q18 | AC6: 1Q19 | AD6: 2Q19 | AE6: 3Q19 | AF6: 4Q19 | AG6: 1Q20 | AH6: 2Q20 | AI6: 3Q20 | AJ6: 4Q20 | AK6: 1Q21 | AL6: 2Q21 | AM6: 3Q21 | AN6: 4Q21 | AO6: 1Q22 | AP6: 2Q22 | AQ6: 3Q22
A7: 2 | B7: US$ million | H7: US$ million
A8: 3
A9: 4 | B9: Cash Equivalents, Beg. of Period* | C9: =+HLOOKUP($C$6,$H$6:$AU$18,A9,FALSE) -> 757.0175584 | D9: =+HLOOKUP($D$6,$H$6:$AU$18,A9,FALSE) -> 950.634738 | E9: =D9/C9-1 -> 0.2557631291 | H9: Cash Equivalents, Beg. of Period | I9: 260.4 | J9: =+I18 -> 208.3 | K9: 337.4 | L9: 878.3 | M9: 832.8 | N9: 816.7 | O9: 912.491 | P9: 1090.609 | Q9: 1080.825629 | R9: 1042.801315 | S9: 827.984429 | T9: 577.4522 | U9: 644.9653254 | V9: 625.2073254 | W9: 642.6533254 | X9: 732.5863254 | Y9: 757.3444199 | Z9: 840.1694199 | AA9: 643.2544199 | AB9: 738.2444199 | AC9: 764.4089199 | AD9: =+AC18 -> 802.7089199 | AE9: =667.31511992-AE28 -> 649.8444199 | AF9: 766.8504199 | AG9: =797.42039843-AG28 -> 773.6496984 | AH9: =+AG18 -> 951.0496984 | AI9: =+AH18 -> 813.1496984 | AJ9: =966.02039843-AJ28 -> 938.6496984 | AK9: =+AJ18-AK28 -> 905.4789984 | AL9: =1027.85236843-AL28 -> 1006.080668 | AM9: =+AL18 -> 757.0175584 | AN9: =+AM18 -> 1864.682558 | AO9: 1391.253487 | AP9: 1175.095835 | AQ9: 950.634738
A10: 5
A11: 6 | B11: Net cash flows provided by (used in) operating activities | C11: =+HLOOKUP($C$6,$H$6:$AO$18,A11,FALSE) -> 73.921 | D11: =+HLOOKUP($D$6,$H$6:$AU$18,A11,FALSE) -> 300.2758605 | E11: =+D11/C11-1 -> 3.062118484 | H11: Net cash flows provided by (used in) operating activities | I11: 83.1 | J11: 196.8 | K11: 148.9 | L11: 166.8 | M11: 77.2 | N11: 157.346 | O11: 235.101 | P11: 248.516629 | Q11: 98.1756 | R11: 151.8321 | S11: 100.698271 | T11: 151.289929 | U11: 87.41 | V11: 118.981 | W11: 145.174 | X11: 172.25 | Y11: 121.578 | Z11: 83.737 | AA11: 134.785 | AB11: =144.4-AB30 -> 142.709 | AC11: =78.3-AC30 -> 74.9 | AD11: 154 | AE11: =165.004-AE30 -> 151.304 | AF11: 128.996 | AG11: =97.9-AG30 -> 89.4 | AH11: =95.4-AH30 -> 78.9 | AI11: =183.2-AI30 -> 154.2 | AJ11: =148.9-AJ30 -> 139.4 | AK11: =111.92597-AK30 -> 96.82597 | AL11: =110.39889-AL30 -> 93.19889 | AM11: =94.3-AM30 -> 73.921 | AN11: =17.9176956799996-AN30 -> 5.09669568 | AO11: 35.97561808 | AP11: -87.71665885 | AQ11: 300.2758605
A12: 7 | B12: Net cash flows provided by (used in) financing activities | C12: =+HLOOKUP($C$6,$H$6:$AO$18,A12,FALSE) -> -12.524 | D12: =+HLOOKUP($D$6,$H$6:$AU$18,A12,FALSE) -> -26.361959 | E12: =+D12/C12-1 -> 1.104915283 | H12: Net cash flows provided by (used in) financing activities | I12: -83.1 | J12: -47.1 | K12: 430.9 | L12: -184 | M12: -67.3 | N12: -41.455 | O12: -29.04 | P12: -31.8 | Q12: -73.3219 | R12: -333.8849 | S12: -281.1355 | T12: -20.3017 | U12: -71.287 | V12: -73.374 | W12: -26.25 | X12: -133.182 | Y12: -1.721 | Z12: -234.536 | AA12: -11.243 | AB12: =+-117.3-AB31 -> -143.556 | AC12: =+-36.1-AC31 -> -22.2 | AD12: -284.3 | AE12: =+-29.469-AE31 -> -12.069 | AF12: -124.131 | AG12: =105.7-AG31 -> 104.6 | AH12: =+-199.8-AH31 -> -200.4 | AI12: =+-33.2-AI31 -> -11.8 | AJ12: =+-119.2-AJ31 -> -113.5 | AK12: =+-37.515-AK31 -> -14.065 | AL12: =+-285.723-AL31 -> -280.873 | AM12: =+-35.3-AM31 -> -12.524 | AN12: =+-441.69185-AN31 -> -437.06785 | AO12: -213.036598 | AP12: -82.088414 | AQ12: -26.361959
A13: 8 | B13: Net cash flows provided by (used in) investing activities** | C13: 1055.52 | D13: =+HLOOKUP($D$6,$H$6:$AU$18,A13,FALSE) -> -67.041 | E13: - | H13: Net cash flows provided by (used in) investing activities | I13: -48.027 | J13: -18.8 | K13: -20.3 | L13: -33.9 | M13: -26.3 | N13: -19.756 | O13: -22.811 | P13: -225 | Q13: -27.2916144 | R13: -35.1780856 | S13: -70.541 | T13: -61.43810363 | U13: -36.849 | V13: -27.785 | W13: -32.205 | X13: -22.74090545 | Y13: -40.06 | Z13: -30.34 | AA13: -25.7 | AB13: =+-18-AB32 -> 32.133 | AC13: =+-17.6-AC32 -> -17.1 | AD13: -19 | AE13: =+-17.163-AE32 -> -17.063 | AF13: 3.263 | AG13: =+-18.6-AG32 -> -14.5 | AH13: =+-18.3-AH32 -> -13.7 | AI13: =+-42.3-AI32 -> -21.4 | AJ13: =+-38.7-AJ32 -> -38.6 | AK13: =+-11.9-AK32 -> -11.397 | AL13: =+-64.54-AL32 -> -63.443 | AM13: =1047.2-AM32 -> 1055.52 | AN13: =+-41.573046-AN32 -> -39.193046 | AO13: -41.213 | AP13: -44.241773 | AQ13: -67.041
A14: 9 | B14: Net Cash Flows for the Period | C14: 1116.917 | D14: =+HLOOKUP($D$6,$H$6:$AU$18,A14,FALSE) -> 206.8729015 | E14: -0.8147822072 | H14: Net Cash Flows for the Period | I14: -48 | J14: 130.9 | K14: 559.4 | L14: -51.1 | M14: -16.4 | N14: 96.135 | O14: 183.25 | P14: -8.283371 | Q14: -2.4379144 | R14: =SUM(R11:R13) -> -217.2308856 | S14: =SUM(S11:S13) -> -250.978229 | T14: =SUM(T11:T13) -> 69.55012537 | U14: =SUM(U11:U13) -> -20.726 | V14: =SUM(V11:V13) -> 17.822 | W14: 86.719 | X14: =SUM(X11:X13) -> 16.32709455 | Y14: 79.797 | Z14: -181.139 | AA14: 97.842 | AB14: 31.286 | AC14: 35.6 | AD14: -149.3 | AE14: 122.172 | AF14: =SUM(AF11:AF13) -> 8.128 | AG14: 179.5 | AH14: -135.2 | AI14: =SUM(AI11:AI13) -> 121 | AJ14: -12.7 | AK14: 71.36397 | AL14: -251.11711 | AM14: 1116.917 | AN14: =SUM(AN11:AN13) -> -471.1642003 | AO14: =SUM(AO11:AO13) -> -218.2739799 | AP14: =SUM(AP11:AP13) -> -214.0468459 | AQ14: =SUM(AQ11:AQ13) -> 206.8729015
A15: 10
A16: 11 | B16: Effects of exchange rate changes on cash and cash equivalents | C16: -9.252 | D16: =+HLOOKUP($D$6,$H$6:$AU$18,A16,FALSE) -> -6.84517023 | E16: - | H16: Effects of exchange rate changes on cash and cash equivalents | I16: -4 | J16: -1.8 | K16: -18.6 | L16: 5.6 | M16: 0.3 | N16: -0.344 | O16: -5.132 | P16: -1.5 | Q16: 6.613 | R16: 2.414 | S16: 0.446 | T16: -2.037 | U16: 0.968 | V16: -0.376 | W16: 3.214 | X16: 8.431 | Y16: 3.028 | Z16: -15.776 | AA16: -2.852 | AB16: =+-5.6-AB35 -> -5.1215 | AC16: =3-AC35 -> 2.7 | AD16: -3.6 | AE16: =+-5.466-AE35 -> -5.166 | AF16: -1.434 | AG16: =+-2.7-AG35 -> -2.1 | AH16: =+-2.9-AH35 -> -2.7 | AI16: =4.2-AI35 -> 4.5 | AJ16: =10.4-AJ35 -> 10.5 | AK16: =+-2.079-AK35 -> -1.733 | AL16: =2.1-AL35 -> 2.054 | AM16: =+-10.3-AM35 -> -9.252 | AN16: =+-1.419424-AN35 -> -2.017424 | AO16: 2.116328 | AP16: -10.414251 | AQ16: -6.84517023
A17: 12
A18: 13 | B18: Cash Equivalents, End of Period | C18: 1864.682558 | D18: =+HLOOKUP($D$6,$H$6:$AU$18,A18,FALSE) -> 1150.662469 | E18: =D18/C18-1 -> -0.3829177712 | H18: Cash Equivalents, End of Period | I18: 208.3 | J18: 337.4 | K18: 878.3 | L18: 832.8 | M18: 816.7 | N18: 912.491 | O18: 1090.609 | P18: 1080.825629 | Q18: 1042.801315 | R18: 827.984429 | S18: 577.4522 | T18: 644.9653254 | U18: =U16+U14+U9 -> 625.2073254 | V18: 642.6533254 | W18: 732.5863254 | X18: 757.3444199 | Y18: 840.1694199 | Z18: 643.2544199 | AA18: =AA16+AA14+AA9 -> 738.2444199 | AB18: 764.4089199 | AC18: 802.7089199 | AD18: 649.8089199 | AE18: 766.8504199 | AF18: 773.5444199 | AG18: 951.0496984 | AH18: 813.1496984 | AI18: =AI16+AI14+AI9 -> 938.6496984 | AJ18: 936.4496984 | AK18: 975.1099684 | AL18: 757.0175584 | AM18: 1864.682558 | AN18: 1391.500934 | AO18: 1175.095835 | AP18: =AP16+AP14+AP9 -> 950.634738 | AQ18: 1150.662469
B23: PERÚ | H23: PERÚ
A25: 1 | B25: CASH FLOW | C25: 3Q21 | D25: 3Q22 | E25: Var (%) | H25: CASH FLOW | I25: 1Q14 | J25: 2Q14 | K25: 3Q14 | L25: 4Q14 | M25: 1Q15 | N25: 2Q15 | O25: 3Q15 | P25: 4Q15 | Q25: 1Q16 | R25: 2Q16 | S25: 3Q16 | T25: 4Q16 | U25: 1Q17 | V25: 2Q17 | W25: 3Q17 | X25: 4Q17 | Y25: 1Q18 | Z25: 2Q18 | AA25: 3Q18 | AB25: 4Q18 | AC25: 1Q19 | AD25: 2Q19 | AE25: 3Q19 | AF25: 4Q19 | AG25: 1Q20 | AH25: 2Q20 | AI25: 3Q20 | AJ25: 4Q20 | AK25: 1Q21 | AL25: 2Q21 | AM25: 3Q21 | AN25: 4Q21 | AO25: 1Q22 | AP25: 2Q22 | AQ25: 3Q22
A26: 2 | B26: US$ million | H26: US$ million
A27: 3
A28: 4 | B28: Cash Equivalents, Beg. of Period* | C28: =+HLOOKUP($C$25,$H$25:$AU$37,A28,FALSE) -> 33.0707 | D28: =+HLOOKUP($D$25,$H$25:$AU$37,A28,FALSE) -> 39.2 | E28: =D28/C28-1 -> 0.1853392883 | H28: Cash Equivalents, Beg. of Period | Q28: 42.1994 | R28: 39.1503 | S28: 40.1202 | T28: 42.7542 | U28: 22.0317 | V28: 38.9787 | W28: 37.8177 | X28: 43.2337 | Y28: =X37 -> 52.8707 | Z28: =Y37 -> 40.5707 | AA28: =Z37 -> 52.3707 | AB28: =+AA37 -> 46.3707 | AC28: 23.6707 | AD28: 12.9707 | AE28: 17.4707 | AF28: 13.3707 | AG28: =+AF37 -> 23.7707 | AH28: 28.6707 | AI28: =+AH37 -> 40.9707 | AJ28: 27.3707 | AK28: 30.9707 | AL28: =+AK37 -> 21.7717 | AM28: =+AL37 -> 33.0707 | AN28: =+AM37 -> 21.3057 | AO28: 27.9 | AP28: 23.4 | AQ28: 39.2
A29: 5
A30: 6 | B30: Net cash flows provided by (used in) operating activities | C30: =+HLOOKUP($C$25,$H$25:$AU$37,A30,FALSE) -> 20.379 | D30: =+HLOOKUP($D$25,$H$25:$AU$37,A30,FALSE) -> 22 | E30: =+D30/C30-1 -> 0.07954266647 | H30: Net cash flows provided by (used in) operating activities | Q30: 5.9664 | R30: 2.9929 | S30: 8.0601 | T30: -1.1653 | U30: 24.838 | V30: 5.173 | W30: 25.257 | X30: 21.856 | Y30: 9.2 | Z30: 15.1 | AA30: 7.6 | AB30: 1.691 | AC30: 3.4 | AD30: 20.7 | AE30: 13.7 | AF30: 18 | AG30: 8.5 | AH30: 16.5 | AI30: 29 | AJ30: 9.5 | AK30: 15.1 | AL30: 17.2 | AM30: =52.679-AL30-AK30 -> 20.379 | AN30: =65.5-SUM(AK30:AM30) -> 12.821 | AO30: 20.3 | AP30: 22.7 | AQ30: 22
A31: 7 | B31: Net cash flows provided by (used in) financing activities** | C31: =+HLOOKUP($C$25,$H$25:$AU$37,A31,FALSE) -> -22.776 | D31: =+HLOOKUP($D$25,$H$25:$AU$37,A31,FALSE) -> -23.8 | E31: =+D31/C31-1 -> 0.0449596066 | H31: Net cash flows provided by (used in) financing activities | Q31: -8.8451 | R31: -0.5151 | S31: -4.3265 | T31: -18.6843 | U31: -4.704 | V31: -3.009 | W31: -17.099 | X31: -9.503 | Y31: -18 | Z31: -0.7 | AA31: -13 | AB31: 26.256 | AC31: -13.9 | AD31: -6.7 | AE31: -17.4 | AF31: -4.3 | AG31: 1.1 | AH31: 0.6 | AI31: -21.4 | AJ31: -5.7 | AK31: -23.45 | AL31: -4.85 | AM31: =+-51.076-AL31-AK31 -> -22.776 | AN31: =-55.7-SUM(AK31:AM31) -> -4.624 | AO31: -24 | AP31: -5 | AQ31: -23.8
A32: 8 | B32: Net cash flows provided by (used in) investing activities | C32: =+HLOOKUP($C$25,$H$25:$AU$37,A32,FALSE) -> -8.32 | D32: =+HLOOKUP($D$25,$H$25:$AU$37,A32,FALSE) -> -11.6 | E32: 0.3942307692 | H32: Net cash flows provided by (used in) investing activities | Q32: -0.1704 | R32: -1.5079 | S32: -1.0996 | T32: -0.8729 | U32: -3.565 | V32: -3.341 | W32: -1.517 | X32: -1.072 | Y32: -2.1 | Z32: -1.9 | AA32: -0.5 | AB32: -50.133 | AC32: -0.5 | AD32: -9.7 | AE32: -0.1 | AF32: -3.8 | AG32: -4.1 | AH32: -4.6 | AI32: -20.9 | AJ32: -0.1 | AK32: -0.503 | AL32: -1.097 | AM32: =+-9.92-AL32-AK32 -> -8.32 | AN32: =-12.3-SUM(AK32:AM32) -> -2.38 | AO32: -2.2 | AP32: -1.7 | AQ32: -11.6
A33: 9 | B33: Net Cash Flows for the Period | C33: =+HLOOKUP($C$25,$H$25:$AU$37,A33,FALSE) -> -10.717 | D33: =+HLOOKUP($D$25,$H$25:$AU$37,A33,FALSE) -> -13.4 | E33: =+D33/C33-1 -> 0.2503499114 | H33: Net Cash Flows for the Period | Q33: -3.0491 | R33: 0.9699 | S33: =SUM(S30:S32) -> 2.634 | T33: =SUM(T30:T32) -> -20.7225 | U33: =SUM(U30:U32) -> 16.569 | V33: =SUM(V30:V32) -> -1.177 | W33: 6.641 | X33: 11.281 | Y33: =SUM(Y30:Y32) -> -10.9 | Z33: 12.5 | AA33: -5.9 | AB33: =+AB30+AB31+AB32 -> -22.186 | AC33: -11 | AD33: 4.3 | AE33: -3.8 | AF33: 9.9 | AG33: 5.5 | AH33: 12.5 | AI33: -13.3 | AJ33: 3.7 | AK33: -8.853 | AL33: 11.253 | AM33: -10.717 | AN33: 5.817 | AO33: -5.9 | AP33: 16 | AQ33: -13.4
A34: 10
A35: 11 | B35: Effects of exchange rate changes on cash and cash equivalents | C35: =+HLOOKUP($C$25,$H$25:$AU$37,A35,FALSE) -> -1.048 | D35: =+HLOOKUP($D$25,$H$25:$AU$37,A35,FALSE) -> -0.65690677 | E35: - | H35: Effects of exchange rate changes on cash and cash equivalents | Q35: 0 | R35: 0 | S35: 0 | T35: 0 | U35: 0.378 | V35: 0.016 | W35: -1.225 | X35: -1.644 | Y35: -1.4 | Z35: -0.7 | AA35: -0.1 | AB35: -0.4785 | AC35: 0.3 | AD35: 0.2 | AE35: -0.3 | AF35: 0.5 | AG35: -0.6 | AH35: -0.2 | AI35: -0.3 | AJ35: -0.1 | AK35: -0.346 | AL35: 0.046 | AM35: =+-1.348-AL35-AK35 -> -1.048 | AN35: =+-0.75-SUM(AK35:AM35) -> 0.598 | AO35: 1.4 | AP35: -0.2 | AQ35: -0.65690677
A36: 12
A37: 13 | B37: Cash Equivalents, End of Period | C37: =+HLOOKUP($C$25,$H$25:$AU$37,A37,FALSE) -> 21.3057 | D37: =+HLOOKUP($D$25,$H$25:$AU$37,A37,FALSE) -> 25.24753082 | E37: =D37/C37-1 -> 0.1850129693 | H37: Cash Equivalents, End of Period | Q37: =Q35+Q33+Q28 -> 39.1503 | R37: 40.1202 | S37: 42.7542 | T37: 22.0317 | U37: 38.9787 | V37: 37.8177 | W37: 43.2337 | X37: 52.8707 | Y37: =Y35+Y33+Y28 -> 40.5707 | Z37: =Z35+Z33+Z28 -> 52.3707 | AA37: =AA35+AA33+AA28 -> 46.3707 | AB37: =+AB28+AB33+AB35 -> 23.7062 | AC37: 12.9707 | AD37: 17.4707 | AE37: 13.3707 | AF37: 23.7707 | AG37: 28.6707 | AH37: 40.9707 | AI37: =+AI28+AI33+AI35 -> 27.3707 | AJ37: =+AJ28+AJ33+AJ35 -> 30.9707 | AK37: =+AK28+AK33+AK35 -> 21.7717 | AL37: =+AL28+AL33+AL35 -> 33.0707 | AM37: =+AM28+AM33+AM35 -> 21.3057 | AN37: =+AN28+AN33+AN35 -> 27.7207 | AO37: =+AO28+AO33+AO35 -> 23.4 | AP37: =+AP28+AP33+AP35 -> 39.2 | AQ37: =1175.91-AQ18 -> 25.24753082
B40: (*) The account “Cash and Cash Equivalents” presented includes the amount associated to time deposits that, by having an investment term of more than 90 days, are recorded as “Other Current Financial Assets” in the Financial Statements. (**) "Cash Flow from Investing Activities" differs from the Financial Statements since it does not incorporate the amount associated with deposits with maturity over 90 days.
